{"text_format":"1","workbook":"xlsx","n_sheets":21,"sheets":["Bilan-Résultat","Document 1","Document 2","Document 3","Document 4-1-2","Document 4-3","Document 5-1-2","Document 6-1","Document 6-2","Document 7","Document 8-1","Document 8-2","Document 9","Document 10-1","Document 10-2","Document 11","Document 12","Document 13","Document 14","Document 15","Plan comptable"],"not_rendered":{"charts":0,"images":0,"macros":1,"external_links":1,"defined_names":1,"comments":0,"pivot_tables":0},"unopened":[],"bounds":{"document_bytes":16777216,"sheet_cells":100000,"rows_first":2000,"rows_last":500,"rows_between":2000,"halvings":0,"cell_chars":16384,"cell_head_chars":4096},"cells_cut":0,"cells_raw":0,"read":"whole","date_system":"1900"}

{"sheet":"Bilan-Résultat","index":0,"n_rows":32,"n_cols":7,"rows_kept":32,"cut":false,"hidden":false,"merged":[[1,1,1,6],[2,1,2,3],[2,4,2,6],[9,4,9,5],[15,1,15,2],[15,4,15,5],[18,1,18,6],[19,1,19,3],[19,4,19,6],[31,1,31,2],[31,4,31,5]]}
[]
[null,"BILAN"]
[null,"ACTIF",null,null,"PASSIF"]
[null,"ACTIF IMMOBILISE",null,{"$f":"SUM(D6:D8)","v":122700},"CAPITAUX PROPRES",null,{"$f":"SUM(G6:G7)","v":59500}]
[]
[null,"Immobilisations Incorporelles",null,{"$f":"SUM('Document 1:Document 15'!D45)","v":0},"Capital",null,{"$f":"SUM('Document 1:Document 15'!G45)","v":50000}]
[null,"Immobilisations Corporelles",null,{"$f":"SUM('Document 1:Document 15'!D46)","v":122700},"Résultat",null,{"$f":"IF(AND(D31=\"\",G31=\"\"),\"\",IF(D31=\"\",-G31,D31))","v":9500}]
[null,"Immobilisations Financières",null,{"$f":"SUM('Document 1:Document 15'!D47)","v":0}]
[]
[null,"ACTIF CIRCULANT",null,{"$f":"SUM(D12:D14)","v":19240},"DETTES",null,{"$f":"SUM(G12:G13)","v":82440}]
[]
[null,"Stocks",null,{"$f":"SUM('Document 1:Document 15'!D51)","v":0},"Emprunts",null,{"$f":"SUM('Document 1:Document 15'!G51)","v":80000}]
[null,"Créances",null,{"$f":"SUM('Document 1:Document 15'!D52)","v":0},"Fournisseurs",null,{"$f":"SUM('Document 1:Document 15'!G52)","v":2440}]
[null,"Disponibilités",null,{"$f":"SUM('Document 1:Document 15'!D53)","v":19240}]
[]
[null,"TOTAUX",null,{"$f":"D4+D10","v":141940},"TOTAUX",null,{"$f":"G10+G4","v":141940}]
[]
[]
[null,"COMPTE DE RESULTAT"]
[null,"CHARGES ",null,null,"PRODUITS "]
[null,"CHARGES EXPLOITATION",null,{"$f":"SUM(D23:D25)","v":6160},"PRODUITS EXPLOITATION",null,{"$f":"SUM(G23)","v":15660}]
[]
[null,"Achats March",null,{"$f":"SUM('Document 1:Document 15'!D63)","v":0},"Vente ou prestation de service",null,{"$f":"SUM('Document 1:Document 15'!G63)","v":15660}]
[null,"Autres Charges externes",null,{"$f":"SUM('Document 1:Document 15'!D64)","v":6160}]
[null,"Dotations aux amortissements",null,{"$f":"SUM('Document 1:Document 15'!D65)","v":0}]
[]
[null,"CHARGES FINANCIERES",null,{"$f":"SUM('Document 1:Document 15'!D67)","v":0},"PRODUITS FINANCIERS",null,{"$f":"SUM('Document 1:Document 15'!G67)","v":0}]
[]
[null,"CHARGES EXCEPTIONNELLES",null,{"$f":"SUM('Document 1:Document 15'!D69)","v":0},"PRODUITS EXCEPTIONNELS",null,{"$f":"SUM('Document 1:Document 15'!G69)","v":0}]
[null,"Sous Total",null,{"$f":"D21+D27+D29","v":6160},"Sous Total",null,{"$f":"G21+G27+G29","v":15660}]
[null,"RESULTAT ","(Bénéfice)",{"$f":"IF(G30-D30>0,G30-D30,\"\")","v":9500},"RESULTAT ","(Perte)",{"$f":"IF(D30-G30>0,D30-G30,\"\")","v":""}]
[null,"TOTAUX",null,{"$f":"SUM(D31,D30)","v":15660},"TOTAUX",null,{"$f":"SUM(G31,G30)","v":15660}]

{"sheet":"Document 1","index":1,"n_rows":73,"n_cols":8,"rows_kept":73,"cut":false,"hidden":false,"merged":[[9,1,10,2],[59,1,59,3],[59,4,59,6],[15,3,15,4],[48,4,48,5],[72,4,72,5],[72,1,72,2],[54,4,54,5],[54,1,54,2],[58,1,58,6],[1,2,1,6],[3,2,3,6],[14,1,14,6],[40,1,40,6],[41,1,41,3],[16,3,16,4],[17,3,17,4],[18,3,18,4],[19,3,19,4],[20,1,20,4],[41,4,41,6],[8,1,8,2],[9,3,9,4],[8,5,8,6],[10,3,10,4],[9,5,10,6]]}
[null,null,null,null,null,null,null,"Effacer les données saisies"]
[null,"Opération 1","Création de l'entreprise"]
[]
[null,"Document 1","Statuts"]
[]
[]
[null,"1. Analyser l’opération suivant une démarche pédagogique choisie (Emploi/Ressource ou Origine/Destination)."]
[]
[null,"Destination/Emploi",null,null,null,"Origine/Ressources"]
[null,"Acquisition d'un terrain\nAugmentation de l'avoir en banque",null,"Montant",null,"Apport en capital des associés"]
[null,null,null,50000]
[]
[null,"2. Procéder à l’enregistrement comptable correspondant sur bordereau de saisie."]
[]
[null,"Bordereau de saisie"]
[null,"Dates","Comptes","Intitulés",null,"Débit","Crédit"]
[null,"2011-04-01",211,{"$f":"IF(C17=\"\",\"\",VLOOKUP(C17,Comptes,2,FALSE))","v":"Terrains"},{"$error":"#N/A"},30000]
[null,null,512,{"$f":"IF(C18=\"\",\"\",VLOOKUP(C18,Comptes,2,FALSE))","v":"Banques"},{"$f":"IF(D18=\"\",\"\",VLOOKUP(D18,Comptes,2,FALSE))","v":{"$error":"#N/A"}},20000]
[null,null,401,"Fournisseurs",{"$error":"#N/A"},null,50000]
[null,null,null,"",""]
[null,"Totaux",null,null,null,{"$f":"SUM(F17:F20)","v":50000},{"$f":"SUM(G17:G20)","v":50000}]
[]
[null,"3. Effectuer le report dans les comptes de l’entreprise."]
[]
[null,"Compte",{"$f":"C17","v":211},null,"Compte",{"$f":"C18","v":512}]
[null,"Débit","Crédit",null,"Débit","Crédit"]
[null,{"$f":"F17","v":30000},{"$f":"G17","v":0},null,{"$f":"F18","v":20000},{"$f":"G18","v":0}]
[]
[]
[null,{"$f":"IF(SUM(B27:B29)-SUM(C27:C29)>0,\"Solde Débiteur : \",IF(SUM(B27:B29)-SUM(C27:C29)<0,\"Solde créditeur : \",\"\"))","v":"Solde Débiteur : "},{"$f":"IF((SUM(B27:B29)-SUM(C27:C29))>0,SUM(B27:B29)-SUM(C27:C29),-(SUM(B27:B29)-SUM(C27:C29)))","v":30000},null,{"$f":"IF(SUM(E27:E29)-SUM(F27:F29)>0,\"Solde Débiteur : \",IF(SUM(E27:E29)-SUM(F27:F29)<0,\"Solde créditeur : \",\"\"))","v":"Solde Débiteur : "},{"$f":"IF((SUM(E27:E29)-SUM(F27:F29))>0,SUM(E27:E29)-SUM(F27:F29),-(SUM(E27:E29)-SUM(F27:F29)))","v":20000}]
[]
[null,"Compte",{"$f":"C19","v":401},null,"Compte",{"$f":"C20","v":0}]
[null,"Débit","Crédit",null,"Débit","Crédit"]
[null,{"$f":"F19","v":0},{"$f":"G19","v":50000},null,{"$f":"F20","v":0}]
[]
[]
[null,{"$f":"IF(SUM(B34:B36)-SUM(C34:C36)>0,\"Solde Débiteur : \",IF(SUM(B34:B36)-SUM(C34:C36)<0,\"Solde créditeur : \",\"\"))","v":"Solde créditeur : "},{"$f":"IF((SUM(B33:B36)-SUM(C33:C36))>0,SUM(B33:B36)-SUM(C33:C36),-(SUM(B33:B36)-SUM(C33:C36)))","v":50000},null,{"$f":"IF(SUM(E34:E36)-SUM(F34:F36)>0,\"Solde Débiteur : \",IF(SUM(E34:E36)-SUM(F34:F36)<0,\"Solde créditeur : \",\"\"))","v":""},{"$f":"IF((SUM(E33:E36)-SUM(F33:F36))>0,SUM(E33:E36)-SUM(F33:F36),-(SUM(E33:E36)-SUM(F33:F36)))","v":0}]
[]
[null,"4. Evaluer les conséquences sur le patrimoine de l’entreprise en présentant son bilan après l'opération."]
[]
[null,"BILAN"]
[null,"ACTIF",null,null,"PASSIF"]
[null,"ACTIF IMMOBILISE",null,{"$f":"SUM(D45:D47)","v":30000},"CAPITAUX PROPRES",null,{"$f":"SUM(G45:G46)","v":50000}]
[]
[null,"Immobilisations Incorporelles",null,null,"Capital",null,50000]
[null,"Immobilisations Corporelles",null,30000,"Résultat",null,{"$f":"IF(AND(D72=\"\",G72=\"\"),\"\",IF(D72=\"\",-G72,D72))","v":""}]
[null,"Immobilisations Financières"]
[]
[null,"ACTIF CIRCULANT",null,{"$f":"SUM(D51:D53)","v":20000},"DETTES",null,{"$f":"SUM(G51:G52)","v":0}]
[]
[null,"Stocks",null,null,"Emprunts"]
[null,"Créances",null,null,"Fournisseurs"]
[null,"Disponibilités",null,20000]
[]
[null,"TOTAUX",null,{"$f":"D43+D49","v":50000},"TOTAUX",null,{"$f":"G43+G49","v":50000}]
[]
[null,"5. Evaluer les conséquences sur l'activité de l’entreprise en présentant son compte de résultat après l'opération."]
[]
[null,"COMPTE DE RESULTAT"]
[null,"CHARGES ",null,null,"PRODUITS "]
[null,"CHARGES EXPLOITATION",null,{"$f":"SUM(D63:D65)","v":0},"PRODUITS EXPLOITATION",null,{"$f":"G63","v":0}]
[]
[null,"Achats de marchandises",null,null,"Vente ou prestation de service"]
[null,"Autres charges externes"]
[null,"Dotations aux amortissements"]
[]
[null,"CHARGES FINANCIERES",null,null,"PRODUITS FINANCIERS"]
[]
[]
[null,"CHARGES EXCEPTIONNELLES",null,null,"PRODUITS EXCEPTIONNELS"]
[null,"Sous Total",null,{"$f":"D61+D67+D70","v":0},"Sous Total",null,{"$f":"G61+G67+G70","v":0}]
[null,"RESULTAT ","(Bénéfice)",{"$f":"IF(G71-D71>0,G71-D71,\"\")","v":""},"RESULTAT ","(Perte)",{"$f":"IF(D71-G71>0,D71-G71,\"\")","v":""}]
[null,"TOTAUX",null,{"$f":"SUM(D72,D71)","v":0},"TOTAUX",null,{"$f":"SUM(G72,G71)","v":0}]

{"sheet":"Document 2","index":2,"n_rows":73,"n_cols":7,"rows_kept":73,"cut":false,"hidden":false,"merged":[[58,1,58,6],[59,1,59,3],[59,4,59,6],[72,1,72,2],[72,4,72,5],[54,1,54,2],[54,4,54,5],[14,1,14,6],[15,3,15,4],[16,3,16,4],[17,3,17,4],[18,3,18,4],[19,3,19,4],[20,1,20,4],[40,1,40,6],[41,1,41,3],[41,4,41,6],[48,4,48,5],[1,2,1,6],[3,2,3,6],[8,1,8,2],[8,5,8,6],[9,1,10,2],[9,3,9,4],[9,5,10,6],[10,3,10,4]]}
[]
[null,"Opération 2","Souscription d'un emprunt"]
[]
[null,"Document 2","Avis de crédit et tableau de remboursement d'emprunt"]
[]
[]
[null,"1. Analyser l’opération suivant une démarche pédagogique choisie (Emploi/Ressource ou Origine/Destination)."]
[]
[null,"Destination/Emploi",null,null,null,"Origine/Ressources"]
[null,"Augmentation de l'avoir en banque",null,"Montant",null,"Augmentation des dettes financières"]
[null,null,null,80000]
[]
[null,"2. Procéder à l’enregistrement comptable correspondant sur bordereau de saisie."]
[]
[null,"Bordereau de saisie"]
[null,"Dates","Comptes","Intitulés",null,"Débit","Crédit"]
[null,"2011-04-02",512,{"$f":"IF(C17=\"\",\"\",VLOOKUP(C17,Comptes,2,FALSE))","v":"Banques"},{"$error":"#N/A"},80000]
[null,null,164,"Emprunts auprès des établissements de crédit",{"$error":"#N/A"},null,80000]
[null,null,null,"",""]
[null,null,null,"",""]
[null,"Totaux",null,null,null,{"$f":"SUM(F17:F20)","v":80000},{"$f":"SUM(G17:G20)","v":80000}]
[]
[null,"3. Effectuer le report dans les comptes de l’entreprise."]
[]
[null,"Compte",{"$f":"C17","v":512},null,"Compte",{"$f":"C18","v":164}]
[null,"Débit","Crédit",null,"Débit","Crédit"]
[null,{"$f":"F17","v":80000},{"$f":"G17","v":0},null,{"$f":"F18","v":0},{"$f":"G18","v":80000}]
[]
[]
[null,{"$f":"IF(SUM(B27:B29)-SUM(C27:C29)>0,\"Solde Débiteur : \",IF(SUM(B27:B29)-SUM(C27:C29)<0,\"Solde créditeur : \",\"\"))","v":"Solde Débiteur : "},{"$f":"IF((SUM(B27:B29)-SUM(C27:C29))>0,SUM(B27:B29)-SUM(C27:C29),-(SUM(B27:B29)-SUM(C27:C29)))","v":80000},null,{"$f":"IF(SUM(E27:E29)-SUM(F27:F29)>0,\"Solde Débiteur : \",IF(SUM(E27:E29)-SUM(F27:F29)<0,\"Solde créditeur : \",\"\"))","v":"Solde créditeur : "},{"$f":"IF((SUM(E27:E29)-SUM(F27:F29))>0,SUM(E27:E29)-SUM(F27:F29),-(SUM(E27:E29)-SUM(F27:F29)))","v":80000}]
[]
[null,"Compte",{"$f":"C19","v":0},null,"Compte",{"$f":"C20","v":0}]
[null,"Débit","Crédit",null,"Débit","Crédit"]
[null,{"$f":"F19","v":0},{"$f":"G19","v":0},null,{"$f":"F20","v":0}]
[]
[]
[null,{"$f":"IF(SUM(B34:B36)-SUM(C34:C36)>0,\"Solde Débiteur : \",IF(SUM(B34:B36)-SUM(C34:C36)<0,\"Solde créditeur : \",\"\"))","v":""},{"$f":"IF((SUM(B33:B36)-SUM(C33:C36))>0,SUM(B33:B36)-SUM(C33:C36),-(SUM(B33:B36)-SUM(C33:C36)))","v":0},null,{"$f":"IF(SUM(E34:E36)-SUM(F34:F36)>0,\"Solde Débiteur : \",IF(SUM(E34:E36)-SUM(F34:F36)<0,\"Solde créditeur : \",\"\"))","v":""},{"$f":"IF((SUM(E33:E36)-SUM(F33:F36))>0,SUM(E33:E36)-SUM(F33:F36),-(SUM(E33:E36)-SUM(F33:F36)))","v":0}]
[]
[null,"4. Evaluer les conséquences sur le patrimoine de l’entreprise en présentant son bilan après l'opération."]
[]
[null,"BILAN"]
[null,"ACTIF",null,null,"PASSIF"]
[null,"ACTIF IMMOBILISE",null,{"$f":"SUM(D45:D47)","v":0},"CAPITAUX PROPRES",null,{"$f":"SUM(G45:G46)","v":0}]
[]
[null,"Immobilisations Incorporelles",null,null,"Capital"]
[null,"Immobilisations Corporelles",null,null,"Résultat",null,{"$f":"IF(AND(D72=\"\",G72=\"\"),\"\",IF(D72=\"\",-G72,D72))","v":""}]
[null,"Immobilisations Financières"]
[]
[null,"ACTIF CIRCULANT",null,{"$f":"SUM(D51:D53)","v":80000},"DETTES",null,{"$f":"SUM(G51:G52)","v":80000}]
[]
[null,"Stocks",null,null,"Emprunts",null,80000]
[null,"Créances",null,null,"Fournisseurs"]
[null,"Disponibilités",null,80000]
[]
[null,"TOTAUX",null,{"$f":"D43+D49","v":80000},"TOTAUX",null,{"$f":"G43+G49","v":80000}]
[]
[null,"5. Evaluer les conséquences sur l'activité de l’entreprise en présentant son compte de résultat après l'opération."]
[]
[null,"COMPTE DE RESULTAT"]
[null,"CHARGES ",null,null,"PRODUITS "]
[null,"CHARGES EXPLOITATION",null,{"$f":"SUM(D63:D65)","v":0},"PRODUITS EXPLOITATION",null,{"$f":"G63","v":0}]
[]
[null,"Achats de marchandises",null,null,"Vente ou prestation de service"]
[null,"Autres charges externes"]
[null,"Dotations aux amortissements"]
[]
[null,"CHARGES FINANCIERES",null,null,"PRODUITS FINANCIERS"]
[]
[]
[null,"CHARGES EXCEPTIONNELLES",null,null,"PRODUITS EXCEPTIONNELS"]
[null,"Sous Total",null,{"$f":"D61+D67+D70","v":0},"Sous Total",null,{"$f":"G61+G67+G70","v":0}]
[null,"RESULTAT ","(Bénéfice)",{"$f":"IF(G71-D71>0,G71-D71,\"\")","v":""},"RESULTAT ","(Perte)",{"$f":"IF(D71-G71>0,D71-G71,\"\")","v":""}]
[null,"TOTAUX",null,{"$f":"SUM(D72,D71)","v":0},"TOTAUX",null,{"$f":"SUM(G72,G71)","v":0}]

{"sheet":"Document 3","index":3,"n_rows":73,"n_cols":7,"rows_kept":73,"cut":false,"hidden":false,"merged":[[58,1,58,6],[59,1,59,3],[59,4,59,6],[72,1,72,2],[72,4,72,5],[54,1,54,2],[54,4,54,5],[14,1,14,6],[15,3,15,4],[16,3,16,4],[17,3,17,4],[18,3,18,4],[19,3,19,4],[20,1,20,4],[40,1,40,6],[41,1,41,3],[41,4,41,6],[48,4,48,5],[1,2,1,6],[3,2,3,6],[8,1,8,2],[8,5,8,6],[9,1,10,2],[9,3,9,4],[9,5,10,6],[10,3,10,4]]}
[]
[null,"Opération 3","Réception d'un devis"]
[]
[null,"Document 3","Devis du fournisseur TRAVAUX 05"]
[]
[]
[null,"1. Analyser l’opération suivant une démarche pédagogique choisie (Emploi/Ressource ou Origine/Destination)."]
[]
[null,"Destination/Emploi",null,null,null,"Origine/Ressources"]
[null,null,null,"Montant"]
[]
[]
[null,"2. Procéder à l’enregistrement comptable correspondant sur bordereau de saisie."]
[]
[null,"Bordereau de saisie"]
[null,"Dates","Comptes","Intitulés",null,"Débit","Crédit"]
[null,null,null,{"$f":"IF(C17=\"\",\"\",VLOOKUP(C17,Comptes,2,FALSE))","v":""},""]
[null,null,null,"",""]
[null,null,null,"",""]
[null,null,null,"",""]
[null,"Totaux",null,null,null,{"$f":"SUM(F17:F20)","v":0},{"$f":"SUM(G17:G20)","v":0}]
[]
[null,"3. Effectuer le report dans les comptes de l’entreprise."]
[]
[null,"Compte",{"$f":"C17","v":0},null,"Compte",{"$f":"C18","v":0}]
[null,"Débit","Crédit",null,"Débit","Crédit"]
[null,{"$f":"F17","v":0},{"$f":"G17","v":0},null,{"$f":"F18","v":0},{"$f":"G18","v":0}]
[]
[]
[null,{"$f":"IF(SUM(B27:B29)-SUM(C27:C29)>0,\"Solde Débiteur : \",IF(SUM(B27:B29)-SUM(C27:C29)<0,\"Solde créditeur : \",\"\"))","v":""},{"$f":"IF((SUM(B27:B29)-SUM(C27:C29))>0,SUM(B27:B29)-SUM(C27:C29),-(SUM(B27:B29)-SUM(C27:C29)))","v":0},null,{"$f":"IF(SUM(E27:E29)-SUM(F27:F29)>0,\"Solde Débiteur : \",IF(SUM(E27:E29)-SUM(F27:F29)<0,\"Solde créditeur : \",\"\"))","v":""},{"$f":"IF((SUM(E27:E29)-SUM(F27:F29))>0,SUM(E27:E29)-SUM(F27:F29),-(SUM(E27:E29)-SUM(F27:F29)))","v":0}]
[]
[null,"Compte",{"$f":"C19","v":0},null,"Compte",{"$f":"C20","v":0}]
[null,"Débit","Crédit",null,"Débit","Crédit"]
[null,{"$f":"F19","v":0},{"$f":"G19","v":0},null,{"$f":"F20","v":0}]
[]
[]
[null,{"$f":"IF(SUM(B34:B36)-SUM(C34:C36)>0,\"Solde Débiteur : \",IF(SUM(B34:B36)-SUM(C34:C36)<0,\"Solde créditeur : \",\"\"))","v":""},{"$f":"IF((SUM(B33:B36)-SUM(C33:C36))>0,SUM(B33:B36)-SUM(C33:C36),-(SUM(B33:B36)-SUM(C33:C36)))","v":0},null,{"$f":"IF(SUM(E34:E36)-SUM(F34:F36)>0,\"Solde Débiteur : \",IF(SUM(E34:E36)-SUM(F34:F36)<0,\"Solde créditeur : \",\"\"))","v":""},{"$f":"IF((SUM(E33:E36)-SUM(F33:F36))>0,SUM(E33:E36)-SUM(F33:F36),-(SUM(E33:E36)-SUM(F33:F36)))","v":0}]
[]
[null,"4. Evaluer les conséquences sur le patrimoine de l’entreprise en présentant son bilan après l'opération."]
[]
[null,"BILAN"]
[null,"ACTIF",null,null,"PASSIF"]
[null,"ACTIF IMMOBILISE",null,{"$f":"SUM(D45:D47)","v":0},"CAPITAUX PROPRES",null,{"$f":"SUM(G45:G46)","v":0}]
[]
[null,"Immobilisations Incorporelles",null,null,"Capital"]
[null,"Immobilisations Corporelles",null,null,"Résultat",null,{"$f":"IF(AND(D72=\"\",G72=\"\"),\"\",IF(D72=\"\",-G72,D72))","v":""}]
[null,"Immobilisations Financières"]
[]
[null,"ACTIF CIRCULANT",null,{"$f":"SUM(D51:D53)","v":0},"DETTES",null,{"$f":"SUM(G51:G52)","v":0}]
[]
[null,"Stocks",null,null,"Emprunts"]
[null,"Créances",null,null,"Fournisseurs"]
[null,"Disponibilités"]
[]
[null,"TOTAUX",null,{"$f":"D43+D49","v":0},"TOTAUX",null,{"$f":"G43+G49","v":0}]
[]
[null,"5. Evaluer les conséquences sur l'activité de l’entreprise en présentant son compte de résultat après l'opération."]
[]
[null,"COMPTE DE RESULTAT"]
[null,"CHARGES ",null,null,"PRODUITS "]
[null,"CHARGES EXPLOITATION",null,{"$f":"SUM(D63:D65)","v":0},"PRODUITS EXPLOITATION",null,{"$f":"G63","v":0}]
[]
[null,"Achats de marchandises",null,null,"Vente ou prestation de service"]
[null,"Autres charges externes"]
[null,"Dotations aux amortissements"]
[]
[null,"CHARGES FINANCIERES",null,null,"PRODUITS FINANCIERS"]
[]
[]
[null,"CHARGES EXCEPTIONNELLES",null,null,"PRODUITS EXCEPTIONNELS"]
[null,"Sous Total",null,{"$f":"D61+D67+D70","v":0},"Sous Total",null,{"$f":"G61+G67+G70","v":0}]
[null,"RESULTAT ","(Bénéfice)",{"$f":"IF(G71-D71>0,G71-D71,\"\")","v":""},"RESULTAT ","(Perte)",{"$f":"IF(D71-G71>0,D71-G71,\"\")","v":""}]
[null,"TOTAUX",null,{"$f":"SUM(D72,D71)","v":0},"TOTAUX",null,{"$f":"SUM(G72,G71)","v":0}]

{"sheet":"Document 4-1-2","index":4,"n_rows":73,"n_cols":7,"rows_kept":73,"cut":false,"hidden":false,"merged":[[58,1,58,6],[59,1,59,3],[59,4,59,6],[72,1,72,2],[72,4,72,5],[54,1,54,2],[54,4,54,5],[14,1,14,6],[15,3,15,4],[16,3,16,4],[17,3,17,4],[18,3,18,4],[19,3,19,4],[20,1,20,4],[40,1,40,6],[41,1,41,3],[41,4,41,6],[48,4,48,5],[1,2,1,6],[3,2,3,6],[8,1,8,2],[8,5,8,6],[9,1,10,2],[9,3,9,4],[9,5,10,6],[10,3,10,4]]}
[]
[null,"Opération 4","Travaux d'aménagement"]
[]
[null,"Document 4-1-2","Facture du fournisseur TRAVAUX 05 - Chèque n° 001 sur la Banque des Alpes"]
[]
[]
[null,"1. Analyser l’opération suivant une démarche pédagogique choisie (Emploi/Ressource ou Origine/Destination)."]
[]
[null,"Destination/Emploi",null,null,null,"Origine/Ressources"]
[null,"Travaux d'aménagement",null,"Montant",null,"Diminution de l'avoir en banque\nAugmentation des dettes fournisseurs"]
[null,null,null,90000]
[]
[null,"2. Procéder à l’enregistrement comptable correspondant sur bordereau de saisie."]
[]
[null,"Bordereau de saisie"]
[null,"Dates","Comptes","Intitulés",null,"Débit","Crédit"]
[null,"2011-04-30",213,{"$f":"IF(C17=\"\",\"\",VLOOKUP(C17,Comptes,2,FALSE))","v":"Constructions"},{"$error":"#N/A"},90000]
[null,null,404,"Fournisseurs d'immobilisations",{"$error":"#N/A"},null,60000]
[null,null,512,"Banques",{"$error":"#N/A"},null,30000]
[null,null,null,"","",null,","]
[null,"Totaux",null,null,null,{"$f":"SUM(F17:F20)","v":90000},{"$f":"SUM(G17:G20)","v":90000}]
[]
[null,"3. Effectuer le report dans les comptes de l’entreprise."]
[]
[null,"Compte",{"$f":"C17","v":213},null,"Compte",{"$f":"C18","v":404}]
[null,"Débit","Crédit",null,"Débit","Crédit"]
[null,{"$f":"F17","v":90000},{"$f":"G17","v":0},null,{"$f":"F18","v":0},{"$f":"G18","v":60000}]
[]
[]
[null,{"$f":"IF(SUM(B27:B29)-SUM(C27:C29)>0,\"Solde Débiteur : \",IF(SUM(B27:B29)-SUM(C27:C29)<0,\"Solde créditeur : \",\"\"))","v":"Solde Débiteur : "},{"$f":"IF((SUM(B27:B29)-SUM(C27:C29))>0,SUM(B27:B29)-SUM(C27:C29),-(SUM(B27:B29)-SUM(C27:C29)))","v":90000},null,{"$f":"IF(SUM(E27:E29)-SUM(F27:F29)>0,\"Solde Débiteur : \",IF(SUM(E27:E29)-SUM(F27:F29)<0,\"Solde créditeur : \",\"\"))","v":"Solde créditeur : "},{"$f":"IF((SUM(E27:E29)-SUM(F27:F29))>0,SUM(E27:E29)-SUM(F27:F29),-(SUM(E27:E29)-SUM(F27:F29)))","v":60000}]
[]
[null,"Compte",{"$f":"C19","v":512},null,"Compte",{"$f":"C20","v":0}]
[null,"Débit","Crédit",null,"Débit","Crédit"]
[null,{"$f":"F19","v":0},{"$f":"G19","v":30000},null,{"$f":"F20","v":0}]
[]
[]
[null,{"$f":"IF(SUM(B34:B36)-SUM(C34:C36)>0,\"Solde Débiteur : \",IF(SUM(B34:B36)-SUM(C34:C36)<0,\"Solde créditeur : \",\"\"))","v":"Solde créditeur : "},{"$f":"IF((SUM(B33:B36)-SUM(C33:C36))>0,SUM(B33:B36)-SUM(C33:C36),-(SUM(B33:B36)-SUM(C33:C36)))","v":30000},null,{"$f":"IF(SUM(E34:E36)-SUM(F34:F36)>0,\"Solde Débiteur : \",IF(SUM(E34:E36)-SUM(F34:F36)<0,\"Solde créditeur : \",\"\"))","v":""},{"$f":"IF((SUM(E33:E36)-SUM(F33:F36))>0,SUM(E33:E36)-SUM(F33:F36),-(SUM(E33:E36)-SUM(F33:F36)))","v":0}]
[]
[null,"4. Evaluer les conséquences sur le patrimoine de l’entreprise en présentant son bilan après l'opération."]
[]
[null,"BILAN"]
[null,"ACTIF",null,null,"PASSIF"]
[null,"ACTIF IMMOBILISE",null,{"$f":"SUM(D45:D47)","v":90000},"CAPITAUX PROPRES",null,{"$f":"SUM(G45:G46)","v":0}]
[]
[null,"Immobilisations Incorporelles",null,null,"Capital"]
[null,"Immobilisations Corporelles",null,90000,"Résultat",null,{"$f":"IF(AND(D72=\"\",G72=\"\"),\"\",IF(D72=\"\",-G72,D72))","v":""}]
[null,"Immobilisations Financières"]
[]
[null,"ACTIF CIRCULANT",null,{"$f":"SUM(D51:D53)","v":-30000},"DETTES",null,{"$f":"SUM(G51:G52)","v":60000}]
[]
[null,"Stocks",null,null,"Emprunts"]
[null,"Créances",null,null,"Fournisseurs",null,60000]
[null,"Disponibilités",null,-30000]
[]
[null,"TOTAUX",null,{"$f":"D43+D49","v":60000},"TOTAUX",null,{"$f":"G43+G49","v":60000}]
[]
[null,"5. Evaluer les conséquences sur l'activité de l’entreprise en présentant son compte de résultat après l'opération."]
[]
[null,"COMPTE DE RESULTAT"]
[null,"CHARGES ",null,null,"PRODUITS "]
[null,"CHARGES EXPLOITATION",null,{"$f":"SUM(D63:D65)","v":0},"PRODUITS EXPLOITATION",null,{"$f":"G63","v":0}]
[]
[null,"Achats de marchandises",null,null,"Vente ou prestation de service"]
[null,"Autres charges externes"]
[null,"Dotations aux amortissements"]
[]
[null,"CHARGES FINANCIERES",null,null,"PRODUITS FINANCIERS"]
[]
[]
[null,"CHARGES EXCEPTIONNELLES",null,null,"PRODUITS EXCEPTIONNELS"]
[null,"Sous Total",null,{"$f":"D61+D67+D70","v":0},"Sous Total",null,{"$f":"G61+G67+G70","v":0}]
[null,"RESULTAT ","(Bénéfice)",{"$f":"IF(G71-D71>0,G71-D71,\"\")","v":""},"RESULTAT ","(Perte)",{"$f":"IF(D71-G71>0,D71-G71,\"\")","v":""}]
[null,"TOTAUX",null,{"$f":"SUM(D72,D71)","v":0},"TOTAUX",null,{"$f":"SUM(G72,G71)","v":0}]

{"sheet":"Document 4-3","index":5,"n_rows":73,"n_cols":7,"rows_kept":73,"cut":false,"hidden":false,"merged":[[58,1,58,6],[59,1,59,3],[59,4,59,6],[72,1,72,2],[72,4,72,5],[54,1,54,2],[54,4,54,5],[14,1,14,6],[15,3,15,4],[16,3,16,4],[17,3,17,4],[18,3,18,4],[19,3,19,4],[20,1,20,4],[40,1,40,6],[41,1,41,3],[41,4,41,6],[48,4,48,5],[1,2,1,6],[3,2,3,6],[8,1,8,2],[8,5,8,6],[9,1,10,2],[9,3,9,4],[9,5,10,6],[10,3,10,4]]}
[]
[null,"Opération 4","Travaux d'aménagement"]
[]
[null,"Document 4-3","Chèque n° 004 sur la Banque des Alpes"]
[]
[]
[null,"1. Analyser l’opération suivant une démarche pédagogique choisie (Emploi/Ressource ou Origine/Destination)."]
[]
[null,"Destination/Emploi",null,null,null,"Origine/Ressources"]
[null,"Diminution des dettes fournisseurs",null,"Montant",null,"Diminution de l'avoir en banque"]
[null,null,null,60000]
[]
[null,"2. Procéder à l’enregistrement comptable correspondant sur bordereau de saisie."]
[]
[null,"Bordereau de saisie"]
[null,"Dates","Comptes","Intitulés",null,"Débit","Crédit"]
[null,"2011-06-30",404,{"$f":"IF(C17=\"\",\"\",VLOOKUP(C17,Comptes,2,FALSE))","v":"Fournisseurs d'immobilisations"},{"$error":"#N/A"},60000]
[null,null,512,"Banques",{"$error":"#N/A"},null,60000]
[null,null,null,"",""]
[null,null,null,"",""]
[null,"Totaux",null,null,null,{"$f":"SUM(F17:F20)","v":60000},{"$f":"SUM(G17:G20)","v":60000}]
[]
[null,"3. Effectuer le report dans les comptes de l’entreprise."]
[]
[null,"Compte",{"$f":"C17","v":404},null,"Compte",{"$f":"C18","v":512}]
[null,"Débit","Crédit",null,"Débit","Crédit"]
[null,{"$f":"F17","v":60000},{"$f":"G17","v":0},null,{"$f":"F18","v":0},{"$f":"G18","v":60000}]
[]
[]
[null,{"$f":"IF(SUM(B27:B29)-SUM(C27:C29)>0,\"Solde Débiteur : \",IF(SUM(B27:B29)-SUM(C27:C29)<0,\"Solde créditeur : \",\"\"))","v":"Solde Débiteur : "},{"$f":"IF((SUM(B27:B29)-SUM(C27:C29))>0,SUM(B27:B29)-SUM(C27:C29),-(SUM(B27:B29)-SUM(C27:C29)))","v":60000},null,{"$f":"IF(SUM(E27:E29)-SUM(F27:F29)>0,\"Solde Débiteur : \",IF(SUM(E27:E29)-SUM(F27:F29)<0,\"Solde créditeur : \",\"\"))","v":"Solde créditeur : "},{"$f":"IF((SUM(E27:E29)-SUM(F27:F29))>0,SUM(E27:E29)-SUM(F27:F29),-(SUM(E27:E29)-SUM(F27:F29)))","v":60000}]
[]
[null,"Compte",{"$f":"C19","v":0},null,"Compte",{"$f":"C20","v":0}]
[null,"Débit","Crédit",null,"Débit","Crédit"]
[null,{"$f":"F19","v":0},{"$f":"G19","v":0},null,{"$f":"F20","v":0}]
[]
[]
[null,{"$f":"IF(SUM(B34:B36)-SUM(C34:C36)>0,\"Solde Débiteur : \",IF(SUM(B34:B36)-SUM(C34:C36)<0,\"Solde créditeur : \",\"\"))","v":""},{"$f":"IF((SUM(B33:B36)-SUM(C33:C36))>0,SUM(B33:B36)-SUM(C33:C36),-(SUM(B33:B36)-SUM(C33:C36)))","v":0},null,{"$f":"IF(SUM(E34:E36)-SUM(F34:F36)>0,\"Solde Débiteur : \",IF(SUM(E34:E36)-SUM(F34:F36)<0,\"Solde créditeur : \",\"\"))","v":""},{"$f":"IF((SUM(E33:E36)-SUM(F33:F36))>0,SUM(E33:E36)-SUM(F33:F36),-(SUM(E33:E36)-SUM(F33:F36)))","v":0}]
[]
[null,"4. Evaluer les conséquences sur le patrimoine de l’entreprise en présentant son bilan après l'opération."]
[]
[null,"BILAN"]
[null,"ACTIF",null,null,"PASSIF"]
[null,"ACTIF IMMOBILISE",null,{"$f":"SUM(D45:D47)","v":0},"CAPITAUX PROPRES",null,{"$f":"SUM(G45:G46)","v":0}]
[]
[null,"Immobilisations Incorporelles",null,null,"Capital"]
[null,"Immobilisations Corporelles",null,null,"Résultat",null,{"$f":"IF(AND(D72=\"\",G72=\"\"),\"\",IF(D72=\"\",-G72,D72))","v":""}]
[null,"Immobilisations Financières"]
[]
[null,"ACTIF CIRCULANT",null,{"$f":"SUM(D51:D53)","v":-60000},"DETTES",null,{"$f":"SUM(G51:G52)","v":-60000}]
[]
[null,"Stocks",null,null,"Emprunts"]
[null,"Créances",null,null,"Fournisseurs",null,-60000]
[null,"Disponibilités",null,-60000]
[]
[null,"TOTAUX",null,{"$f":"D43+D49","v":-60000},"TOTAUX",null,{"$f":"G43+G49","v":-60000}]
[]
[null,"5. Evaluer les conséquences sur l'activité de l’entreprise en présentant son compte de résultat après l'opération."]
[]
[null,"COMPTE DE RESULTAT"]
[null,"CHARGES ",null,null,"PRODUITS "]
[null,"CHARGES EXPLOITATION",null,{"$f":"SUM(D63:D65)","v":0},"PRODUITS EXPLOITATION",null,{"$f":"G63","v":0}]
[]
[null,"Achats de marchandises",null,null,"Vente ou prestation de service"]
[null,"Autres charges externes"]
[null,"Dotations aux amortissements"]
[]
[null,"CHARGES FINANCIERES",null,null,"PRODUITS FINANCIERS"]
[]
[]
[null,"CHARGES EXCEPTIONNELLES",null,null,"PRODUITS EXCEPTIONNELS"]
[null,"Sous Total",null,{"$f":"D61+D67+D70","v":0},"Sous Total",null,{"$f":"G61+G67+G70","v":0}]
[null,"RESULTAT ","(Bénéfice)",{"$f":"IF(G71-D71>0,G71-D71,\"\")","v":""},"RESULTAT ","(Perte)",{"$f":"IF(D71-G71>0,D71-G71,\"\")","v":""}]
[null,"TOTAUX",null,{"$f":"SUM(D72,D71)","v":0},"TOTAUX",null,{"$f":"SUM(G72,G71)","v":0}]

{"sheet":"Document 5-1-2","index":6,"n_rows":73,"n_cols":7,"rows_kept":73,"cut":false,"hidden":false,"merged":[[58,1,58,6],[59,1,59,3],[59,4,59,6],[72,1,72,2],[72,4,72,5],[54,1,54,2],[54,4,54,5],[14,1,14,6],[15,3,15,4],[16,3,16,4],[17,3,17,4],[18,3,18,4],[19,3,19,4],[20,1,20,4],[40,1,40,6],[41,1,41,3],[41,4,41,6],[48,4,48,5],[1,2,1,6],[3,2,3,6],[8,1,8,2],[8,5,8,6],[9,1,10,2],[9,3,9,4],[9,5,10,6],[10,3,10,4]]}
[]
[null,"Opération 5","Acquisition de matériel informatique"]
[]
[null,"Document 5-1-2","Facture du fournisseur LEPERCK - Chèque n° 002 sur la Banque des Alpes"]
[]
[]
[null,"1. Analyser l’opération suivant une démarche pédagogique choisie (Emploi/Ressource ou Origine/Destination)."]
[]
[null,"Destination/Emploi",null,null,null,"Origine/Ressources"]
[null,"Matériel informatique",null,"Montant",null,"Diminution de l'avoir en banque\nAugmentation des dettes fournisseurs"]
[null,null,null,1200]
[]
[null,"2. Procéder à l’enregistrement comptable correspondant sur bordereau de saisie."]
[]
[null,"Bordereau de saisie"]
[null,"Dates","Comptes","Intitulés",null,"Débit","Crédit"]
[null,"2011-05-16",2183,{"$f":"IF(C17=\"\",\"\",VLOOKUP(C17,Comptes,2,FALSE))","v":"Matériel de bureau et matériel informatique"},{"$error":"#N/A"},1200]
[null,null,512,"Banques",{"$error":"#N/A"},null,1200]
[null,null,null,"",""]
[null,null,null,"",""]
[null,"Totaux",null,null,null,{"$f":"SUM(F17:F20)","v":1200},{"$f":"SUM(G17:G20)","v":1200}]
[]
[null,"3. Effectuer le report dans les comptes de l’entreprise."]
[]
[null,"Compte",{"$f":"C17","v":2183},null,"Compte",{"$f":"C18","v":512}]
[null,"Débit","Crédit",null,"Débit","Crédit"]
[null,{"$f":"F17","v":1200},{"$f":"G17","v":0},null,{"$f":"F18","v":0},{"$f":"G18","v":1200}]
[]
[]
[null,{"$f":"IF(SUM(B27:B29)-SUM(C27:C29)>0,\"Solde Débiteur : \",IF(SUM(B27:B29)-SUM(C27:C29)<0,\"Solde créditeur : \",\"\"))","v":"Solde Débiteur : "},{"$f":"IF((SUM(B27:B29)-SUM(C27:C29))>0,SUM(B27:B29)-SUM(C27:C29),-(SUM(B27:B29)-SUM(C27:C29)))","v":1200},null,{"$f":"IF(SUM(E27:E29)-SUM(F27:F29)>0,\"Solde Débiteur : \",IF(SUM(E27:E29)-SUM(F27:F29)<0,\"Solde créditeur : \",\"\"))","v":"Solde créditeur : "},{"$f":"IF((SUM(E27:E29)-SUM(F27:F29))>0,SUM(E27:E29)-SUM(F27:F29),-(SUM(E27:E29)-SUM(F27:F29)))","v":1200}]
[]
[null,"Compte",{"$f":"C19","v":0},null,"Compte",{"$f":"C20","v":0}]
[null,"Débit","Crédit",null,"Débit","Crédit"]
[null,{"$f":"F19","v":0},{"$f":"G19","v":0},null,{"$f":"F20","v":0}]
[]
[]
[null,{"$f":"IF(SUM(B34:B36)-SUM(C34:C36)>0,\"Solde Débiteur : \",IF(SUM(B34:B36)-SUM(C34:C36)<0,\"Solde créditeur : \",\"\"))","v":""},{"$f":"IF((SUM(B33:B36)-SUM(C33:C36))>0,SUM(B33:B36)-SUM(C33:C36),-(SUM(B33:B36)-SUM(C33:C36)))","v":0},null,{"$f":"IF(SUM(E34:E36)-SUM(F34:F36)>0,\"Solde Débiteur : \",IF(SUM(E34:E36)-SUM(F34:F36)<0,\"Solde créditeur : \",\"\"))","v":""},{"$f":"IF((SUM(E33:E36)-SUM(F33:F36))>0,SUM(E33:E36)-SUM(F33:F36),-(SUM(E33:E36)-SUM(F33:F36)))","v":0}]
[]
[null,"4. Evaluer les conséquences sur le patrimoine de l’entreprise en présentant son bilan après l'opération."]
[]
[null,"BILAN"]
[null,"ACTIF",null,null,"PASSIF"]
[null,"ACTIF IMMOBILISE",null,{"$f":"SUM(D45:D47)","v":1200},"CAPITAUX PROPRES",null,{"$f":"SUM(G45:G46)","v":0}]
[]
[null,"Immobilisations Incorporelles",null,null,"Capital"]
[null,"Immobilisations Corporelles",null,1200,"Résultat",null,{"$f":"IF(AND(D72=\"\",G72=\"\"),\"\",IF(D72=\"\",-G72,D72))","v":""}]
[null,"Immobilisations Financières"]
[]
[null,"ACTIF CIRCULANT",null,{"$f":"SUM(D51:D53)","v":-1200},"DETTES",null,{"$f":"SUM(G51:G52)","v":0}]
[]
[null,"Stocks",null,null,"Emprunts"]
[null,"Créances",null,null,"Fournisseurs"]
[null,"Disponibilités",null,-1200]
[]
[null,"TOTAUX",null,{"$f":"D43+D49","v":0},"TOTAUX",null,{"$f":"G43+G49","v":0}]
[]
[null,"5. Evaluer les conséquences sur l'activité de l’entreprise en présentant son compte de résultat après l'opération."]
[]
[null,"COMPTE DE RESULTAT"]
[null,"CHARGES ",null,null,"PRODUITS "]
[null,"CHARGES EXPLOITATION",null,{"$f":"SUM(D63:D65)","v":0},"PRODUITS EXPLOITATION",null,{"$f":"G63","v":0}]
[]
[null,"Achats de marchandises",null,null,"Vente ou prestation de service"]
[null,"Autres charges externes"]
[null,"Dotations aux amortissements"]
[]
[null,"CHARGES FINANCIERES",null,null,"PRODUITS FINANCIERS"]
[]
[]
[null,"CHARGES EXCEPTIONNELLES",null,null,"PRODUITS EXCEPTIONNELS"]
[null,"Sous Total",null,{"$f":"D61+D67+D70","v":0},"Sous Total",null,{"$f":"G61+G67+G70","v":0}]
[null,"RESULTAT ","(Bénéfice)",{"$f":"IF(G71-D71>0,G71-D71,\"\")","v":""},"RESULTAT ","(Perte)",{"$f":"IF(D71-G71>0,D71-G71,\"\")","v":""}]
[null,"TOTAUX",null,{"$f":"SUM(D72,D71)","v":0},"TOTAUX",null,{"$f":"SUM(G72,G71)","v":0}]

{"sheet":"Document 6-1","index":7,"n_rows":73,"n_cols":7,"rows_kept":73,"cut":false,"hidden":false,"merged":[[58,1,58,6],[59,1,59,3],[59,4,59,6],[72,1,72,2],[72,4,72,5],[54,1,54,2],[54,4,54,5],[14,1,14,6],[15,3,15,4],[16,3,16,4],[17,3,17,4],[18,3,18,4],[19,3,19,4],[20,1,20,4],[40,1,40,6],[41,1,41,3],[41,4,41,6],[48,4,48,5],[1,2,1,6],[3,2,3,6],[8,1,8,2],[8,5,8,6],[9,1,10,2],[9,3,9,4],[9,5,10,6],[10,3,10,4]]}
[]
[null,"Opération 6","Acquisition de mobilier de bureau"]
[]
[null,"Document 6-1","Facture du fournisseur BUREAU 05"]
[]
[]
[null,"1. Analyser l’opération suivant une démarche pédagogique choisie (Emploi/Ressource ou Origine/Destination)."]
[]
[null,"Destination/Emploi",null,null,null,"Origine/Ressources"]
[null,"Acquisition de mobilier de bureau",null,"Montant",null,"Augmentation des dettes fournisseurs"]
[null,null,null,1500]
[]
[null,"2. Procéder à l’enregistrement comptable correspondant sur bordereau de saisie."]
[]
[null,"Bordereau de saisie"]
[null,"Dates","Comptes","Intitulés",null,"Débit","Crédit"]
[null,"2011-05-17",2183,{"$f":"IF(C17=\"\",\"\",VLOOKUP(C17,Comptes,2,FALSE))","v":"Matériel de bureau et matériel informatique"},{"$error":"#N/A"},1500]
[null,null,404,"Fournisseurs d'immobilisations",{"$error":"#N/A"},null,1500]
[null,null,null,"",""]
[null,null,null,"",""]
[null,"Totaux",null,null,null,{"$f":"SUM(F17:F20)","v":1500},{"$f":"SUM(G17:G20)","v":1500}]
[]
[null,"3. Effectuer le report dans les comptes de l’entreprise."]
[]
[null,"Compte",{"$f":"C17","v":2183},null,"Compte",{"$f":"C18","v":404}]
[null,"Débit","Crédit",null,"Débit","Crédit"]
[null,{"$f":"F17","v":1500},{"$f":"G17","v":0},null,{"$f":"F18","v":0},{"$f":"G18","v":1500}]
[]
[]
[null,{"$f":"IF(SUM(B27:B29)-SUM(C27:C29)>0,\"Solde Débiteur : \",IF(SUM(B27:B29)-SUM(C27:C29)<0,\"Solde créditeur : \",\"\"))","v":"Solde Débiteur : "},{"$f":"IF((SUM(B27:B29)-SUM(C27:C29))>0,SUM(B27:B29)-SUM(C27:C29),-(SUM(B27:B29)-SUM(C27:C29)))","v":1500},null,{"$f":"IF(SUM(E27:E29)-SUM(F27:F29)>0,\"Solde Débiteur : \",IF(SUM(E27:E29)-SUM(F27:F29)<0,\"Solde créditeur : \",\"\"))","v":"Solde créditeur : "},{"$f":"IF((SUM(E27:E29)-SUM(F27:F29))>0,SUM(E27:E29)-SUM(F27:F29),-(SUM(E27:E29)-SUM(F27:F29)))","v":1500}]
[]
[null,"Compte",{"$f":"C19","v":0},null,"Compte",{"$f":"C20","v":0}]
[null,"Débit","Crédit",null,"Débit","Crédit"]
[null,{"$f":"F19","v":0},{"$f":"G19","v":0},null,{"$f":"F20","v":0}]
[]
[]
[null,{"$f":"IF(SUM(B34:B36)-SUM(C34:C36)>0,\"Solde Débiteur : \",IF(SUM(B34:B36)-SUM(C34:C36)<0,\"Solde créditeur : \",\"\"))","v":""},{"$f":"IF((SUM(B33:B36)-SUM(C33:C36))>0,SUM(B33:B36)-SUM(C33:C36),-(SUM(B33:B36)-SUM(C33:C36)))","v":0},null,{"$f":"IF(SUM(E34:E36)-SUM(F34:F36)>0,\"Solde Débiteur : \",IF(SUM(E34:E36)-SUM(F34:F36)<0,\"Solde créditeur : \",\"\"))","v":""},{"$f":"IF((SUM(E33:E36)-SUM(F33:F36))>0,SUM(E33:E36)-SUM(F33:F36),-(SUM(E33:E36)-SUM(F33:F36)))","v":0}]
[]
[null,"4. Evaluer les conséquences sur le patrimoine de l’entreprise en présentant son bilan après l'opération."]
[]
[null,"BILAN"]
[null,"ACTIF",null,null,"PASSIF"]
[null,"ACTIF IMMOBILISE",null,{"$f":"SUM(D45:D47)","v":1500},"CAPITAUX PROPRES",null,{"$f":"SUM(G45:G46)","v":0}]
[]
[null,"Immobilisations Incorporelles",null,null,"Capital"]
[null,"Immobilisations Corporelles",null,1500,"Résultat",null,{"$f":"IF(AND(D72=\"\",G72=\"\"),\"\",IF(D72=\"\",-G72,D72))","v":""}]
[null,"Immobilisations Financières"]
[]
[null,"ACTIF CIRCULANT",null,{"$f":"SUM(D51:D53)","v":0},"DETTES",null,{"$f":"SUM(G51:G52)","v":1500}]
[]
[null,"Stocks",null,null,"Emprunts"]
[null,"Créances",null,null,"Fournisseurs",null,1500]
[null,"Disponibilités"]
[]
[null,"TOTAUX",null,{"$f":"D43+D49","v":1500},"TOTAUX",null,{"$f":"G43+G49","v":1500}]
[]
[null,"5. Evaluer les conséquences sur l'activité de l’entreprise en présentant son compte de résultat après l'opération."]
[]
[null,"COMPTE DE RESULTAT"]
[null,"CHARGES ",null,null,"PRODUITS "]
[null,"CHARGES EXPLOITATION",null,{"$f":"SUM(D63:D65)","v":0},"PRODUITS EXPLOITATION",null,{"$f":"G63","v":0}]
[]
[null,"Achats de marchandises",null,null,"Vente ou prestation de service"]
[null,"Autres charges externes"]
[null,"Dotations aux amortissements"]
[]
[null,"CHARGES FINANCIERES",null,null,"PRODUITS FINANCIERS"]
[]
[]
[null,"CHARGES EXCEPTIONNELLES",null,null,"PRODUITS EXCEPTIONNELS"]
[null,"Sous Total",null,{"$f":"D61+D67+D70","v":0},"Sous Total",null,{"$f":"G61+G67+G70","v":0}]
[null,"RESULTAT ","(Bénéfice)",{"$f":"IF(G71-D71>0,G71-D71,\"\")","v":""},"RESULTAT ","(Perte)",{"$f":"IF(D71-G71>0,D71-G71,\"\")","v":""}]
[null,"TOTAUX",null,{"$f":"SUM(D72,D71)","v":0},"TOTAUX",null,{"$f":"SUM(G72,G71)","v":0}]

{"sheet":"Document 6-2","index":8,"n_rows":73,"n_cols":7,"rows_kept":73,"cut":false,"hidden":false,"merged":[[58,1,58,6],[59,1,59,3],[59,4,59,6],[72,1,72,2],[72,4,72,5],[54,1,54,2],[54,4,54,5],[14,1,14,6],[15,3,15,4],[16,3,16,4],[17,3,17,4],[18,3,18,4],[19,3,19,4],[20,1,20,4],[40,1,40,6],[41,1,41,3],[41,4,41,6],[48,4,48,5],[1,2,1,6],[3,2,3,6],[8,1,8,2],[8,5,8,6],[9,1,10,2],[9,3,9,4],[9,5,10,6],[10,3,10,4]]}
[]
[null,"Opération 6","Acquisition de mobilier de bureau"]
[]
[null,"Document 6-2","Chèque n° 006 sur la Banque des Alpes"]
[]
[]
[null,"1. Analyser l’opération suivant une démarche pédagogique choisie (Emploi/Ressource ou Origine/Destination)."]
[]
[null,"Destination/Emploi",null,null,null,"Origine/Ressources"]
[null,"Diminution des dettes fournisseurs",null,"Montant",null,"Diminution de l'avoir en bvanque"]
[null,null,null,1500]
[]
[null,"2. Procéder à l’enregistrement comptable correspondant sur bordereau de saisie."]
[]
[null,"Bordereau de saisie"]
[null,"Dates","Comptes","Intitulés",null,"Débit","Crédit"]
[null,"2011-07-31",404,{"$f":"IF(C17=\"\",\"\",VLOOKUP(C17,Comptes,2,FALSE))","v":"Fournisseurs d'immobilisations"},{"$error":"#N/A"},1500]
[null,null,512,"Banques",{"$error":"#N/A"},null,1500]
[null,null,null,"",""]
[null,null,null,"",""]
[null,"Totaux",null,null,null,{"$f":"SUM(F17:F20)","v":1500},{"$f":"SUM(G17:G20)","v":1500}]
[]
[null,"3. Effectuer le report dans les comptes de l’entreprise."]
[]
[null,"Compte",{"$f":"C17","v":404},null,"Compte",{"$f":"C18","v":512}]
[null,"Débit","Crédit",null,"Débit","Crédit"]
[null,{"$f":"F17","v":1500},{"$f":"G17","v":0},null,{"$f":"F18","v":0},{"$f":"G18","v":1500}]
[]
[]
[null,{"$f":"IF(SUM(B27:B29)-SUM(C27:C29)>0,\"Solde Débiteur : \",IF(SUM(B27:B29)-SUM(C27:C29)<0,\"Solde créditeur : \",\"\"))","v":"Solde Débiteur : "},{"$f":"IF((SUM(B27:B29)-SUM(C27:C29))>0,SUM(B27:B29)-SUM(C27:C29),-(SUM(B27:B29)-SUM(C27:C29)))","v":1500},null,{"$f":"IF(SUM(E27:E29)-SUM(F27:F29)>0,\"Solde Débiteur : \",IF(SUM(E27:E29)-SUM(F27:F29)<0,\"Solde créditeur : \",\"\"))","v":"Solde créditeur : "},{"$f":"IF((SUM(E27:E29)-SUM(F27:F29))>0,SUM(E27:E29)-SUM(F27:F29),-(SUM(E27:E29)-SUM(F27:F29)))","v":1500}]
[]
[null,"Compte",{"$f":"C19","v":0},null,"Compte",{"$f":"C20","v":0}]
[null,"Débit","Crédit",null,"Débit","Crédit"]
[null,{"$f":"F19","v":0},{"$f":"G19","v":0},null,{"$f":"F20","v":0}]
[]
[]
[null,{"$f":"IF(SUM(B34:B36)-SUM(C34:C36)>0,\"Solde Débiteur : \",IF(SUM(B34:B36)-SUM(C34:C36)<0,\"Solde créditeur : \",\"\"))","v":""},{"$f":"IF((SUM(B33:B36)-SUM(C33:C36))>0,SUM(B33:B36)-SUM(C33:C36),-(SUM(B33:B36)-SUM(C33:C36)))","v":0},null,{"$f":"IF(SUM(E34:E36)-SUM(F34:F36)>0,\"Solde Débiteur : \",IF(SUM(E34:E36)-SUM(F34:F36)<0,\"Solde créditeur : \",\"\"))","v":""},{"$f":"IF((SUM(E33:E36)-SUM(F33:F36))>0,SUM(E33:E36)-SUM(F33:F36),-(SUM(E33:E36)-SUM(F33:F36)))","v":0}]
[]
[null,"4. Evaluer les conséquences sur le patrimoine de l’entreprise en présentant son bilan après l'opération."]
[]
[null,"BILAN"]
[null,"ACTIF",null,null,"PASSIF"]
[null,"ACTIF IMMOBILISE",null,{"$f":"SUM(D45:D47)","v":0},"CAPITAUX PROPRES",null,{"$f":"SUM(G45:G46)","v":0}]
[]
[null,"Immobilisations Incorporelles",null,null,"Capital"]
[null,"Immobilisations Corporelles",null,null,"Résultat",null,{"$f":"IF(AND(D72=\"\",G72=\"\"),\"\",IF(D72=\"\",-G72,D72))","v":""}]
[null,"Immobilisations Financières"]
[]
[null,"ACTIF CIRCULANT",null,{"$f":"SUM(D51:D53)","v":-1500},"DETTES",null,{"$f":"SUM(G51:G52)","v":-1500}]
[]
[null,"Stocks",null,null,"Emprunts"]
[null,"Créances",null,null,"Fournisseurs",null,-1500]
[null,"Disponibilités",null,-1500]
[]
[null,"TOTAUX",null,{"$f":"D43+D49","v":-1500},"TOTAUX",null,{"$f":"G43+G49","v":-1500}]
[]
[null,"5. Evaluer les conséquences sur l'activité de l’entreprise en présentant son compte de résultat après l'opération."]
[]
[null,"COMPTE DE RESULTAT"]
[null,"CHARGES ",null,null,"PRODUITS "]
[null,"CHARGES EXPLOITATION",null,{"$f":"SUM(D63:D65)","v":0},"PRODUITS EXPLOITATION",null,{"$f":"G63","v":0}]
[]
[null,"Achats de marchandises",null,null,"Vente ou prestation de service"]
[null,"Autres charges externes"]
[null,"Dotations aux amortissements"]
[]
[null,"CHARGES FINANCIERES",null,null,"PRODUITS FINANCIERS"]
[]
[]
[null,"CHARGES EXCEPTIONNELLES",null,null,"PRODUITS EXCEPTIONNELS"]
[null,"Sous Total",null,{"$f":"D61+D67+D70","v":0},"Sous Total",null,{"$f":"G61+G67+G70","v":0}]
[null,"RESULTAT ","(Bénéfice)",{"$f":"IF(G71-D71>0,G71-D71,\"\")","v":""},"RESULTAT ","(Perte)",{"$f":"IF(D71-G71>0,D71-G71,\"\")","v":""}]
[null,"TOTAUX",null,{"$f":"SUM(D72,D71)","v":0},"TOTAUX",null,{"$f":"SUM(G72,G71)","v":0}]

{"sheet":"Document 7","index":9,"n_rows":73,"n_cols":7,"rows_kept":73,"cut":false,"hidden":false,"merged":[[58,1,58,6],[59,1,59,3],[59,4,59,6],[72,1,72,2],[72,4,72,5],[54,1,54,2],[54,4,54,5],[14,1,14,6],[15,3,15,4],[16,3,16,4],[17,3,17,4],[18,3,18,4],[19,3,19,4],[20,1,20,4],[40,1,40,6],[41,1,41,3],[41,4,41,6],[48,4,48,5],[1,2,1,6],[3,2,3,6],[8,1,8,2],[8,5,8,6],[9,1,10,2],[9,3,9,4],[9,5,10,6],[10,3,10,4]]}
[]
[null,"Opération 7","Abonnement et prélèvement EDF"]
[]
[null,"Document 7","Quittance du fournisseur GAP-ELEC avec avis de prélèvement"]
[]
[]
[null,"1. Analyser l’opération suivant une démarche pédagogique choisie (Emploi/Ressource ou Origine/Destination)."]
[]
[null,"Destination/Emploi",null,null,null,"Origine/Ressources"]
[null,"Forfait annuel électricité ",null,"Montant",null,"Diminution de l'avoir en banque"]
[null,null,null,1800]
[]
[null,"2. Procéder à l’enregistrement comptable correspondant sur bordereau de saisie."]
[]
[null,"Bordereau de saisie"]
[null,"Dates","Comptes","Intitulés",null,"Débit","Crédit"]
[null,"2011-06-01",6061,{"$f":"IF(C17=\"\",\"\",VLOOKUP(C17,Comptes,2,FALSE))","v":"Fournitures non stockables (eau, énergie…)"},{"$error":"#N/A"},1800]
[null,null,512,"Banques",{"$error":"#N/A"},null,1800]
[null,null,null,"",""]
[null,null,null,"",""]
[null,"Totaux",null,null,null,{"$f":"SUM(F17:F20)","v":1800},{"$f":"SUM(G17:G20)","v":1800}]
[]
[null,"3. Effectuer le report dans les comptes de l’entreprise."]
[]
[null,"Compte",{"$f":"C17","v":6061},null,"Compte",{"$f":"C18","v":512}]
[null,"Débit","Crédit",null,"Débit","Crédit"]
[null,{"$f":"F17","v":1800},{"$f":"G17","v":0},null,{"$f":"F18","v":0},{"$f":"G18","v":1800}]
[]
[]
[null,{"$f":"IF(SUM(B27:B29)-SUM(C27:C29)>0,\"Solde Débiteur : \",IF(SUM(B27:B29)-SUM(C27:C29)<0,\"Solde créditeur : \",\"\"))","v":"Solde Débiteur : "},{"$f":"IF((SUM(B27:B29)-SUM(C27:C29))>0,SUM(B27:B29)-SUM(C27:C29),-(SUM(B27:B29)-SUM(C27:C29)))","v":1800},null,{"$f":"IF(SUM(E27:E29)-SUM(F27:F29)>0,\"Solde Débiteur : \",IF(SUM(E27:E29)-SUM(F27:F29)<0,\"Solde créditeur : \",\"\"))","v":"Solde créditeur : "},{"$f":"IF((SUM(E27:E29)-SUM(F27:F29))>0,SUM(E27:E29)-SUM(F27:F29),-(SUM(E27:E29)-SUM(F27:F29)))","v":1800}]
[]
[null,"Compte",{"$f":"C19","v":0},null,"Compte",{"$f":"C20","v":0}]
[null,"Débit","Crédit",null,"Débit","Crédit"]
[null,{"$f":"F19","v":0},{"$f":"G19","v":0},null,{"$f":"F20","v":0}]
[]
[]
[null,{"$f":"IF(SUM(B34:B36)-SUM(C34:C36)>0,\"Solde Débiteur : \",IF(SUM(B34:B36)-SUM(C34:C36)<0,\"Solde créditeur : \",\"\"))","v":""},{"$f":"IF((SUM(B33:B36)-SUM(C33:C36))>0,SUM(B33:B36)-SUM(C33:C36),-(SUM(B33:B36)-SUM(C33:C36)))","v":0},null,{"$f":"IF(SUM(E34:E36)-SUM(F34:F36)>0,\"Solde Débiteur : \",IF(SUM(E34:E36)-SUM(F34:F36)<0,\"Solde créditeur : \",\"\"))","v":""},{"$f":"IF((SUM(E33:E36)-SUM(F33:F36))>0,SUM(E33:E36)-SUM(F33:F36),-(SUM(E33:E36)-SUM(F33:F36)))","v":0}]
[]
[null,"4. Evaluer les conséquences sur le patrimoine de l’entreprise en présentant son bilan après l'opération."]
[]
[null,"BILAN"]
[null,"ACTIF",null,null,"PASSIF"]
[null,"ACTIF IMMOBILISE",null,{"$f":"SUM(D45:D47)","v":0},"CAPITAUX PROPRES",null,{"$f":"SUM(G45:G46)","v":-1800}]
[]
[null,"Immobilisations Incorporelles",null,null,"Capital"]
[null,"Immobilisations Corporelles",null,null,"Résultat",null,{"$f":"IF(AND(D72=\"\",G72=\"\"),\"\",IF(D72=\"\",-G72,D72))","v":-1800}]
[null,"Immobilisations Financières"]
[]
[null,"ACTIF CIRCULANT",null,{"$f":"SUM(D51:D53)","v":-1800},"DETTES",null,{"$f":"SUM(G51:G52)","v":0}]
[]
[null,"Stocks",null,null,"Emprunts"]
[null,"Créances",null,null,"Fournisseurs"]
[null,"Disponibilités",null,-1800]
[]
[null,"TOTAUX",null,{"$f":"D43+D49","v":-1800},"TOTAUX",null,{"$f":"G43+G49","v":-1800}]
[]
[null,"5. Evaluer les conséquences sur l'activité de l’entreprise en présentant son compte de résultat après l'opération."]
[]
[null,"COMPTE DE RESULTAT"]
[null,"CHARGES ",null,null,"PRODUITS "]
[null,"CHARGES EXPLOITATION",null,{"$f":"SUM(D63:D65)","v":1800},"PRODUITS EXPLOITATION",null,{"$f":"G63","v":0}]
[]
[null,"Achats de marchandises",null,null,"Vente ou prestation de service"]
[null,"Autres charges externes",null,1800]
[null,"Dotations aux amortissements"]
[]
[null,"CHARGES FINANCIERES",null,null,"PRODUITS FINANCIERS"]
[]
[]
[null,"CHARGES EXCEPTIONNELLES",null,null,"PRODUITS EXCEPTIONNELS"]
[null,"Sous Total",null,{"$f":"D61+D67+D70","v":1800},"Sous Total",null,{"$f":"G61+G67+G70","v":0}]
[null,"RESULTAT ","(Bénéfice)",{"$f":"IF(G71-D71>0,G71-D71,\"\")","v":""},"RESULTAT ","(Perte)",{"$f":"IF(D71-G71>0,D71-G71,\"\")","v":1800}]
[null,"TOTAUX",null,{"$f":"SUM(D72,D71)","v":1800},"TOTAUX",null,{"$f":"SUM(G72,G71)","v":1800}]

{"sheet":"Document 8-1","index":10,"n_rows":73,"n_cols":7,"rows_kept":73,"cut":false,"hidden":false,"merged":[[58,1,58,6],[59,1,59,3],[59,4,59,6],[72,1,72,2],[72,4,72,5],[54,1,54,2],[54,4,54,5],[14,1,14,6],[15,3,15,4],[16,3,16,4],[17,3,17,4],[18,3,18,4],[19,3,19,4],[20,1,20,4],[40,1,40,6],[41,1,41,3],[41,4,41,6],[48,4,48,5],[1,2,1,6],[3,2,3,6],[8,1,8,2],[8,5,8,6],[9,1,10,2],[9,3,9,4],[9,5,10,6],[10,3,10,4]]}
[]
[null,"Opération 8","Abonnement téléphonie FRS"]
[]
[null,"Document 8-1","Facture du fournisseur FRS et avis de prélèvement"]
[]
[]
[null,"1. Analyser l’opération suivant une démarche pédagogique choisie (Emploi/Ressource ou Origine/Destination)."]
[]
[null,"Destination/Emploi",null,null,null,"Origine/Ressources"]
[null,"Abonnement téléphonie",null,"Montant",null,"Diminution de l'avoir en banque"]
[null,null,null,100]
[]
[null,"2. Procéder à l’enregistrement comptable correspondant sur bordereau de saisie."]
[]
[null,"Bordereau de saisie"]
[null,"Dates","Comptes","Intitulés",null,"Débit","Crédit"]
[null,"2011-06-03",626,{"$f":"IF(C17=\"\",\"\",VLOOKUP(C17,Comptes,2,FALSE))","v":"Frais postaux et frais de télécommunication"},{"$error":"#N/A"},100]
[null,null,512,"Banques",{"$error":"#N/A"},null,100]
[null,null,null,"",""]
[null,null,null,"",""]
[null,"Totaux",null,null,null,{"$f":"SUM(F17:F20)","v":100},{"$f":"SUM(G17:G20)","v":100}]
[]
[null,"3. Effectuer le report dans les comptes de l’entreprise."]
[]
[null,"Compte",{"$f":"C17","v":626},null,"Compte",{"$f":"C18","v":512}]
[null,"Débit","Crédit",null,"Débit","Crédit"]
[null,{"$f":"F17","v":100},{"$f":"G17","v":0},null,{"$f":"F18","v":0},{"$f":"G18","v":100}]
[]
[]
[null,{"$f":"IF(SUM(B27:B29)-SUM(C27:C29)>0,\"Solde Débiteur : \",IF(SUM(B27:B29)-SUM(C27:C29)<0,\"Solde créditeur : \",\"\"))","v":"Solde Débiteur : "},{"$f":"IF((SUM(B27:B29)-SUM(C27:C29))>0,SUM(B27:B29)-SUM(C27:C29),-(SUM(B27:B29)-SUM(C27:C29)))","v":100},null,{"$f":"IF(SUM(E27:E29)-SUM(F27:F29)>0,\"Solde Débiteur : \",IF(SUM(E27:E29)-SUM(F27:F29)<0,\"Solde créditeur : \",\"\"))","v":"Solde créditeur : "},{"$f":"IF((SUM(E27:E29)-SUM(F27:F29))>0,SUM(E27:E29)-SUM(F27:F29),-(SUM(E27:E29)-SUM(F27:F29)))","v":100}]
[]
[null,"Compte",{"$f":"C19","v":0},null,"Compte",{"$f":"C20","v":0}]
[null,"Débit","Crédit",null,"Débit","Crédit"]
[null,{"$f":"F19","v":0},{"$f":"G19","v":0},null,{"$f":"F20","v":0}]
[]
[]
[null,{"$f":"IF(SUM(B34:B36)-SUM(C34:C36)>0,\"Solde Débiteur : \",IF(SUM(B34:B36)-SUM(C34:C36)<0,\"Solde créditeur : \",\"\"))","v":""},{"$f":"IF((SUM(B33:B36)-SUM(C33:C36))>0,SUM(B33:B36)-SUM(C33:C36),-(SUM(B33:B36)-SUM(C33:C36)))","v":0},null,{"$f":"IF(SUM(E34:E36)-SUM(F34:F36)>0,\"Solde Débiteur : \",IF(SUM(E34:E36)-SUM(F34:F36)<0,\"Solde créditeur : \",\"\"))","v":""},{"$f":"IF((SUM(E33:E36)-SUM(F33:F36))>0,SUM(E33:E36)-SUM(F33:F36),-(SUM(E33:E36)-SUM(F33:F36)))","v":0}]
[]
[null,"4. Evaluer les conséquences sur le patrimoine de l’entreprise en présentant son bilan après l'opération."]
[]
[null,"BILAN"]
[null,"ACTIF",null,null,"PASSIF"]
[null,"ACTIF IMMOBILISE",null,{"$f":"SUM(D45:D47)","v":0},"CAPITAUX PROPRES",null,{"$f":"SUM(G45:G46)","v":-100}]
[]
[null,"Immobilisations Incorporelles",null,null,"Capital"]
[null,"Immobilisations Corporelles",null,null,"Résultat",null,{"$f":"IF(AND(D72=\"\",G72=\"\"),\"\",IF(D72=\"\",-G72,D72))","v":-100}]
[null,"Immobilisations Financières"]
[]
[null,"ACTIF CIRCULANT",null,{"$f":"SUM(D51:D53)","v":-100},"DETTES",null,{"$f":"SUM(G51:G52)","v":0}]
[]
[null,"Stocks",null,null,"Emprunts"]
[null,"Créances",null,null,"Fournisseurs"]
[null,"Disponibilités",null,-100]
[]
[null,"TOTAUX",null,{"$f":"D43+D49","v":-100},"TOTAUX",null,{"$f":"G43+G49","v":-100}]
[]
[null,"5. Evaluer les conséquences sur l'activité de l’entreprise en présentant son compte de résultat après l'opération."]
[]
[null,"COMPTE DE RESULTAT"]
[null,"CHARGES ",null,null,"PRODUITS "]
[null,"CHARGES EXPLOITATION",null,{"$f":"SUM(D63:D65)","v":100},"PRODUITS EXPLOITATION",null,{"$f":"G63","v":0}]
[]
[null,"Achats de marchandises",null,null,"Vente ou prestation de service"]
[null,"Autres charges externes",null,100]
[null,"Dotations aux amortissements"]
[]
[null,"CHARGES FINANCIERES",null,null,"PRODUITS FINANCIERS"]
[]
[]
[null,"CHARGES EXCEPTIONNELLES",null,null,"PRODUITS EXCEPTIONNELS"]
[null,"Sous Total",null,{"$f":"D61+D67+D70","v":100},"Sous Total",null,{"$f":"G61+G67+G70","v":0}]
[null,"RESULTAT ","(Bénéfice)",{"$f":"IF(G71-D71>0,G71-D71,\"\")","v":""},"RESULTAT ","(Perte)",{"$f":"IF(D71-G71>0,D71-G71,\"\")","v":100}]
[null,"TOTAUX",null,{"$f":"SUM(D72,D71)","v":100},"TOTAUX",null,{"$f":"SUM(G72,G71)","v":100}]

{"sheet":"Document 8-2","index":11,"n_rows":73,"n_cols":7,"rows_kept":73,"cut":false,"hidden":false,"merged":[[58,1,58,6],[59,1,59,3],[59,4,59,6],[72,1,72,2],[72,4,72,5],[54,1,54,2],[54,4,54,5],[14,1,14,6],[15,3,15,4],[16,3,16,4],[17,3,17,4],[18,3,18,4],[19,3,19,4],[20,1,20,4],[40,1,40,6],[41,1,41,3],[41,4,41,6],[48,4,48,5],[1,2,1,6],[3,2,3,6],[8,1,8,2],[8,5,8,6],[9,1,10,2],[9,3,9,4],[9,5,10,6],[10,3,10,4]]}
[]
[null,"Opération 8","Abonnement téléphonie FRS"]
[]
[null,"Document 8-2","Facture du fournisseur FRS et avis de prélèvement"]
[]
[]
[null,"1. Analyser l’opération suivant une démarche pédagogique choisie (Emploi/Ressource ou Origine/Destination)."]
[]
[null,"Destination/Emploi",null,null,null,"Origine/Ressources"]
[null,"Abonnement téléphonie",null,"Montant",null,"Diminution de l'avoir en banque"]
[null,null,null,100]
[]
[null,"2. Procéder à l’enregistrement comptable correspondant sur bordereau de saisie."]
[]
[null,"Bordereau de saisie"]
[null,"Dates","Comptes","Intitulés",null,"Débit","Crédit"]
[null,"2011-06-03",626,{"$f":"IF(C17=\"\",\"\",VLOOKUP(C17,Comptes,2,FALSE))","v":"Frais postaux et frais de télécommunication"},{"$error":"#N/A"},100]
[null,null,512,"Banques",{"$error":"#N/A"},null,100]
[null,null,null,"",""]
[null,null,null,"",""]
[null,"Totaux",null,null,null,{"$f":"SUM(F17:F20)","v":100},{"$f":"SUM(G17:G20)","v":100}]
[]
[null,"3. Effectuer le report dans les comptes de l’entreprise."]
[]
[null,"Compte",{"$f":"C17","v":626},null,"Compte",{"$f":"C18","v":512}]
[null,"Débit","Crédit",null,"Débit","Crédit"]
[null,{"$f":"F17","v":100},{"$f":"G17","v":0},null,{"$f":"F18","v":0},{"$f":"G18","v":100}]
[]
[]
[null,{"$f":"IF(SUM(B27:B29)-SUM(C27:C29)>0,\"Solde Débiteur : \",IF(SUM(B27:B29)-SUM(C27:C29)<0,\"Solde créditeur : \",\"\"))","v":"Solde Débiteur : "},{"$f":"IF((SUM(B27:B29)-SUM(C27:C29))>0,SUM(B27:B29)-SUM(C27:C29),-(SUM(B27:B29)-SUM(C27:C29)))","v":100},null,{"$f":"IF(SUM(E27:E29)-SUM(F27:F29)>0,\"Solde Débiteur : \",IF(SUM(E27:E29)-SUM(F27:F29)<0,\"Solde créditeur : \",\"\"))","v":"Solde créditeur : "},{"$f":"IF((SUM(E27:E29)-SUM(F27:F29))>0,SUM(E27:E29)-SUM(F27:F29),-(SUM(E27:E29)-SUM(F27:F29)))","v":100}]
[]
[null,"Compte",{"$f":"C19","v":0},null,"Compte",{"$f":"C20","v":0}]
[null,"Débit","Crédit",null,"Débit","Crédit"]
[null,{"$f":"F19","v":0},{"$f":"G19","v":0},null,{"$f":"F20","v":0}]
[]
[]
[null,{"$f":"IF(SUM(B34:B36)-SUM(C34:C36)>0,\"Solde Débiteur : \",IF(SUM(B34:B36)-SUM(C34:C36)<0,\"Solde créditeur : \",\"\"))","v":""},{"$f":"IF((SUM(B33:B36)-SUM(C33:C36))>0,SUM(B33:B36)-SUM(C33:C36),-(SUM(B33:B36)-SUM(C33:C36)))","v":0},null,{"$f":"IF(SUM(E34:E36)-SUM(F34:F36)>0,\"Solde Débiteur : \",IF(SUM(E34:E36)-SUM(F34:F36)<0,\"Solde créditeur : \",\"\"))","v":""},{"$f":"IF((SUM(E33:E36)-SUM(F33:F36))>0,SUM(E33:E36)-SUM(F33:F36),-(SUM(E33:E36)-SUM(F33:F36)))","v":0}]
[]
[null,"4. Evaluer les conséquences sur le patrimoine de l’entreprise en présentant son bilan après l'opération."]
[]
[null,"BILAN"]
[null,"ACTIF",null,null,"PASSIF"]
[null,"ACTIF IMMOBILISE",null,{"$f":"SUM(D45:D47)","v":0},"CAPITAUX PROPRES",null,{"$f":"SUM(G45:G46)","v":-100}]
[]
[null,"Immobilisations Incorporelles",null,null,"Capital"]
[null,"Immobilisations Corporelles",null,null,"Résultat",null,{"$f":"IF(AND(D72=\"\",G72=\"\"),\"\",IF(D72=\"\",-G72,D72))","v":-100}]
[null,"Immobilisations Financières"]
[]
[null,"ACTIF CIRCULANT",null,{"$f":"SUM(D51:D53)","v":-100},"DETTES",null,{"$f":"SUM(G51:G52)","v":0}]
[]
[null,"Stocks",null,null,"Emprunts"]
[null,"Créances",null,null,"Fournisseurs"]
[null,"Disponibilités",null,-100]
[]
[null,"TOTAUX",null,{"$f":"D43+D49","v":-100},"TOTAUX",null,{"$f":"G43+G49","v":-100}]
[]
[null,"5. Evaluer les conséquences sur l'activité de l’entreprise en présentant son compte de résultat après l'opération."]
[]
[null,"COMPTE DE RESULTAT"]
[null,"CHARGES ",null,null,"PRODUITS "]
[null,"CHARGES EXPLOITATION",null,{"$f":"SUM(D63:D65)","v":100},"PRODUITS EXPLOITATION",null,{"$f":"G63","v":0}]
[]
[null,"Achats de marchandises",null,null,"Vente ou prestation de service"]
[null,"Autres charges externes",null,100]
[null,"Dotations aux amortissements"]
[]
[null,"CHARGES FINANCIERES",null,null,"PRODUITS FINANCIERS"]
[]
[]
[null,"CHARGES EXCEPTIONNELLES",null,null,"PRODUITS EXCEPTIONNELS"]
[null,"Sous Total",null,{"$f":"D61+D67+D70","v":100},"Sous Total",null,{"$f":"G61+G67+G70","v":0}]
[null,"RESULTAT ","(Bénéfice)",{"$f":"IF(G71-D71>0,G71-D71,\"\")","v":""},"RESULTAT ","(Perte)",{"$f":"IF(D71-G71>0,D71-G71,\"\")","v":100}]
[null,"TOTAUX",null,{"$f":"SUM(D72,D71)","v":100},"TOTAUX",null,{"$f":"SUM(G72,G71)","v":100}]

{"sheet":"Document 9","index":12,"n_rows":73,"n_cols":7,"rows_kept":73,"cut":false,"hidden":false,"merged":[[58,1,58,6],[59,1,59,3],[59,4,59,6],[72,1,72,2],[72,4,72,5],[54,1,54,2],[54,4,54,5],[14,1,14,6],[15,3,15,4],[16,3,16,4],[17,3,17,4],[18,3,18,4],[19,3,19,4],[20,1,20,4],[40,1,40,6],[41,1,41,3],[41,4,41,6],[48,4,48,5],[1,2,1,6],[3,2,3,6],[8,1,8,2],[8,5,8,6],[9,1,10,2],[9,3,9,4],[9,5,10,6],[10,3,10,4]]}
[]
[null,"Opération 9","Achat de fournitures de bureau"]
[]
[null,"Document 9","Facture du fournisseur PAP 05 - Chèque n° 003 sur la Banque des Alpes"]
[]
[]
[null,"1. Analyser l’opération suivant une démarche pédagogique choisie (Emploi/Ressource ou Origine/Destination)."]
[]
[null,"Destination/Emploi",null,null,null,"Origine/Ressources"]
[null,"Fournitures de bureau",null,"Montant",null,"Diminution de l'avoir en banque"]
[null,null,null,320]
[]
[null,"2. Procéder à l’enregistrement comptable correspondant sur bordereau de saisie."]
[]
[null,"Bordereau de saisie"]
[null,"Dates","Comptes","Intitulés",null,"Débit","Crédit"]
[null,"2011-06-04",6064,{"$f":"IF(C17=\"\",\"\",VLOOKUP(C17,Comptes,2,FALSE))","v":"Fournitures administratives"},{"$error":"#N/A"},320]
[null,null,512,"Banques",{"$error":"#N/A"},null,320]
[null,null,null,"",""]
[null,null,null,"",""]
[null,"Totaux",null,null,null,{"$f":"SUM(F17:F20)","v":320},{"$f":"SUM(G17:G20)","v":320}]
[]
[null,"3. Effectuer le report dans les comptes de l’entreprise."]
[]
[null,"Compte",{"$f":"C17","v":6064},null,"Compte",{"$f":"C18","v":512}]
[null,"Débit","Crédit",null,"Débit","Crédit"]
[null,{"$f":"F17","v":320},{"$f":"G17","v":0},null,{"$f":"F18","v":0},{"$f":"G18","v":320}]
[]
[]
[null,{"$f":"IF(SUM(B27:B29)-SUM(C27:C29)>0,\"Solde Débiteur : \",IF(SUM(B27:B29)-SUM(C27:C29)<0,\"Solde créditeur : \",\"\"))","v":"Solde Débiteur : "},{"$f":"IF((SUM(B27:B29)-SUM(C27:C29))>0,SUM(B27:B29)-SUM(C27:C29),-(SUM(B27:B29)-SUM(C27:C29)))","v":320},null,{"$f":"IF(SUM(E27:E29)-SUM(F27:F29)>0,\"Solde Débiteur : \",IF(SUM(E27:E29)-SUM(F27:F29)<0,\"Solde créditeur : \",\"\"))","v":"Solde créditeur : "},{"$f":"IF((SUM(E27:E29)-SUM(F27:F29))>0,SUM(E27:E29)-SUM(F27:F29),-(SUM(E27:E29)-SUM(F27:F29)))","v":320}]
[]
[null,"Compte",{"$f":"C19","v":0},null,"Compte",{"$f":"C20","v":0}]
[null,"Débit","Crédit",null,"Débit","Crédit"]
[null,{"$f":"F19","v":0},{"$f":"G19","v":0},null,{"$f":"F20","v":0}]
[]
[]
[null,{"$f":"IF(SUM(B34:B36)-SUM(C34:C36)>0,\"Solde Débiteur : \",IF(SUM(B34:B36)-SUM(C34:C36)<0,\"Solde créditeur : \",\"\"))","v":""},{"$f":"IF((SUM(B33:B36)-SUM(C33:C36))>0,SUM(B33:B36)-SUM(C33:C36),-(SUM(B33:B36)-SUM(C33:C36)))","v":0},null,{"$f":"IF(SUM(E34:E36)-SUM(F34:F36)>0,\"Solde Débiteur : \",IF(SUM(E34:E36)-SUM(F34:F36)<0,\"Solde créditeur : \",\"\"))","v":""},{"$f":"IF((SUM(E33:E36)-SUM(F33:F36))>0,SUM(E33:E36)-SUM(F33:F36),-(SUM(E33:E36)-SUM(F33:F36)))","v":0}]
[]
[null,"4. Evaluer les conséquences sur le patrimoine de l’entreprise en présentant son bilan après l'opération."]
[]
[null,"BILAN"]
[null,"ACTIF",null,null,"PASSIF"]
[null,"ACTIF IMMOBILISE",null,{"$f":"SUM(D45:D47)","v":0},"CAPITAUX PROPRES",null,{"$f":"SUM(G45:G46)","v":-320}]
[]
[null,"Immobilisations Incorporelles",null,null,"Capital"]
[null,"Immobilisations Corporelles",null,null,"Résultat",null,{"$f":"IF(AND(D72=\"\",G72=\"\"),\"\",IF(D72=\"\",-G72,D72))","v":-320}]
[null,"Immobilisations Financières"]
[]
[null,"ACTIF CIRCULANT",null,{"$f":"SUM(D51:D53)","v":-320},"DETTES",null,{"$f":"SUM(G51:G52)","v":0}]
[]
[null,"Stocks",null,null,"Emprunts"]
[null,"Créances",null,null,"Fournisseurs"]
[null,"Disponibilités",null,-320]
[]
[null,"TOTAUX",null,{"$f":"D43+D49","v":-320},"TOTAUX",null,{"$f":"G43+G49","v":-320}]
[]
[null,"5. Evaluer les conséquences sur l'activité de l’entreprise en présentant son compte de résultat après l'opération."]
[]
[null,"COMPTE DE RESULTAT"]
[null,"CHARGES ",null,null,"PRODUITS "]
[null,"CHARGES EXPLOITATION",null,{"$f":"SUM(D63:D65)","v":320},"PRODUITS EXPLOITATION",null,{"$f":"G63","v":0}]
[]
[null,"Achats de marchandises",null,null,"Vente ou prestation de service"]
[null,"Autres charges externes",null,320]
[null,"Dotations aux amortissements"]
[]
[null,"CHARGES FINANCIERES",null,null,"PRODUITS FINANCIERS"]
[]
[]
[null,"CHARGES EXCEPTIONNELLES",null,null,"PRODUITS EXCEPTIONNELS"]
[null,"Sous Total",null,{"$f":"D61+D67+D70","v":320},"Sous Total",null,{"$f":"G61+G67+G70","v":0}]
[null,"RESULTAT ","(Bénéfice)",{"$f":"IF(G71-D71>0,G71-D71,\"\")","v":""},"RESULTAT ","(Perte)",{"$f":"IF(D71-G71>0,D71-G71,\"\")","v":320}]
[null,"TOTAUX",null,{"$f":"SUM(D72,D71)","v":320},"TOTAUX",null,{"$f":"SUM(G72,G71)","v":320}]

{"sheet":"Document 10-1","index":13,"n_rows":73,"n_cols":7,"rows_kept":73,"cut":false,"hidden":false,"merged":[[58,1,58,6],[59,1,59,3],[59,4,59,6],[72,1,72,2],[72,4,72,5],[54,1,54,2],[54,4,54,5],[14,1,14,6],[15,3,15,4],[16,3,16,4],[17,3,17,4],[18,3,18,4],[19,3,19,4],[20,1,20,4],[40,1,40,6],[41,1,41,3],[41,4,41,6],[48,4,48,5],[1,2,1,6],[3,2,3,6],[8,1,8,2],[8,5,8,6],[9,1,10,2],[9,3,9,4],[9,5,10,6],[10,3,10,4]]}
[]
[null,"Opération 10","Achat de produits d'entretien"]
[]
[null,"Document 10-1","Facture du fournisseur LAV'ONET"]
[]
[]
[null,"1. Analyser l’opération suivant une démarche pédagogique choisie (Emploi/Ressource ou Origine/Destination)."]
[]
[null,"Destination/Emploi",null,null,null,"Origine/Ressources"]
[null,"Produits d'entretien",null,"Montant",null,"Augmentation des dettes fournisseurs"]
[null,null,null,1400]
[]
[null,"2. Procéder à l’enregistrement comptable correspondant sur bordereau de saisie."]
[]
[null,"Bordereau de saisie"]
[null,"Dates","Comptes","Intitulés",null,"Débit","Crédit"]
[null,"2011-06-05",6063,{"$f":"IF(C17=\"\",\"\",VLOOKUP(C17,Comptes,2,FALSE))","v":"Fournitures d'entretien et de petit équipement"},{"$error":"#N/A"},1400]
[null,null,401,"Fournisseurs",{"$error":"#N/A"},null,1400]
[null,null,null,"",""]
[null,null,null,"",""]
[null,"Totaux",null,null,null,{"$f":"SUM(F17:F20)","v":1400},{"$f":"SUM(G17:G20)","v":1400}]
[]
[null,"3. Effectuer le report dans les comptes de l’entreprise."]
[]
[null,"Compte",{"$f":"C17","v":6063},null,"Compte",{"$f":"C18","v":401}]
[null,"Débit","Crédit",null,"Débit","Crédit"]
[null,{"$f":"F17","v":1400},{"$f":"G17","v":0},null,{"$f":"F18","v":0},{"$f":"G18","v":1400}]
[]
[]
[null,{"$f":"IF(SUM(B27:B29)-SUM(C27:C29)>0,\"Solde Débiteur : \",IF(SUM(B27:B29)-SUM(C27:C29)<0,\"Solde créditeur : \",\"\"))","v":"Solde Débiteur : "},{"$f":"IF((SUM(B27:B29)-SUM(C27:C29))>0,SUM(B27:B29)-SUM(C27:C29),-(SUM(B27:B29)-SUM(C27:C29)))","v":1400},null,{"$f":"IF(SUM(E27:E29)-SUM(F27:F29)>0,\"Solde Débiteur : \",IF(SUM(E27:E29)-SUM(F27:F29)<0,\"Solde créditeur : \",\"\"))","v":"Solde créditeur : "},{"$f":"IF((SUM(E27:E29)-SUM(F27:F29))>0,SUM(E27:E29)-SUM(F27:F29),-(SUM(E27:E29)-SUM(F27:F29)))","v":1400}]
[]
[null,"Compte",{"$f":"C19","v":0},null,"Compte",{"$f":"C20","v":0}]
[null,"Débit","Crédit",null,"Débit","Crédit"]
[null,{"$f":"F19","v":0},{"$f":"G19","v":0},null,{"$f":"F20","v":0}]
[]
[]
[null,{"$f":"IF(SUM(B34:B36)-SUM(C34:C36)>0,\"Solde Débiteur : \",IF(SUM(B34:B36)-SUM(C34:C36)<0,\"Solde créditeur : \",\"\"))","v":""},{"$f":"IF((SUM(B33:B36)-SUM(C33:C36))>0,SUM(B33:B36)-SUM(C33:C36),-(SUM(B33:B36)-SUM(C33:C36)))","v":0},null,{"$f":"IF(SUM(E34:E36)-SUM(F34:F36)>0,\"Solde Débiteur : \",IF(SUM(E34:E36)-SUM(F34:F36)<0,\"Solde créditeur : \",\"\"))","v":""},{"$f":"IF((SUM(E33:E36)-SUM(F33:F36))>0,SUM(E33:E36)-SUM(F33:F36),-(SUM(E33:E36)-SUM(F33:F36)))","v":0}]
[]
[null,"4. Evaluer les conséquences sur le patrimoine de l’entreprise en présentant son bilan après l'opération."]
[]
[null,"BILAN"]
[null,"ACTIF",null,null,"PASSIF"]
[null,"ACTIF IMMOBILISE",null,{"$f":"SUM(D45:D47)","v":0},"CAPITAUX PROPRES",null,{"$f":"SUM(G45:G46)","v":-1400}]
[]
[null,"Immobilisations Incorporelles",null,null,"Capital"]
[null,"Immobilisations Corporelles",null,null,"Résultat",null,{"$f":"IF(AND(D72=\"\",G72=\"\"),\"\",IF(D72=\"\",-G72,D72))","v":-1400}]
[null,"Immobilisations Financières"]
[]
[null,"ACTIF CIRCULANT",null,{"$f":"SUM(D51:D53)","v":0},"DETTES",null,{"$f":"SUM(G51:G52)","v":1400}]
[]
[null,"Stocks",null,null,"Emprunts"]
[null,"Créances",null,null,"Fournisseurs",null,1400]
[null,"Disponibilités"]
[]
[null,"TOTAUX",null,{"$f":"D43+D49","v":0},"TOTAUX",null,{"$f":"G43+G49","v":0}]
[]
[null,"5. Evaluer les conséquences sur l'activité de l’entreprise en présentant son compte de résultat après l'opération."]
[]
[null,"COMPTE DE RESULTAT"]
[null,"CHARGES ",null,null,"PRODUITS "]
[null,"CHARGES EXPLOITATION",null,{"$f":"SUM(D63:D65)","v":1400},"PRODUITS EXPLOITATION",null,{"$f":"G63","v":0}]
[]
[null,"Achats de marchandises",null,null,"Vente ou prestation de service"]
[null,"Autres charges externes",null,1400]
[null,"Dotations aux amortissements"]
[]
[null,"CHARGES FINANCIERES",null,null,"PRODUITS FINANCIERS"]
[]
[]
[null,"CHARGES EXCEPTIONNELLES",null,null,"PRODUITS EXCEPTIONNELS"]
[null,"Sous Total",null,{"$f":"D61+D67+D70","v":1400},"Sous Total",null,{"$f":"G61+G67+G70","v":0}]
[null,"RESULTAT ","(Bénéfice)",{"$f":"IF(G71-D71>0,G71-D71,\"\")","v":""},"RESULTAT ","(Perte)",{"$f":"IF(D71-G71>0,D71-G71,\"\")","v":1400}]
[null,"TOTAUX",null,{"$f":"SUM(D72,D71)","v":1400},"TOTAUX",null,{"$f":"SUM(G72,G71)","v":1400}]

{"sheet":"Document 10-2","index":14,"n_rows":73,"n_cols":7,"rows_kept":73,"cut":false,"hidden":false,"merged":[[58,1,58,6],[59,1,59,3],[59,4,59,6],[72,1,72,2],[72,4,72,5],[54,1,54,2],[54,4,54,5],[14,1,14,6],[15,3,15,4],[16,3,16,4],[17,3,17,4],[18,3,18,4],[19,3,19,4],[20,1,20,4],[40,1,40,6],[41,1,41,3],[41,4,41,6],[48,4,48,5],[1,2,1,6],[3,2,3,6],[8,1,8,2],[8,5,8,6],[9,1,10,2],[9,3,9,4],[9,5,10,6],[10,3,10,4]]}
[]
[null,"Opération 10","Achat de produits d'entretien"]
[]
[null,"Document 10-2","Chèque n° 005 sur la Banque des Alpes"]
[]
[]
[null,"1. Analyser l’opération suivant une démarche pédagogique choisie (Emploi/Ressource ou Origine/Destination)."]
[]
[null,"Destination/Emploi",null,null,null,"Origine/Ressources"]
[null,"Diminution des dettes fournisseurs",null,"Montant",null,"Diminution de l'avoir en banque"]
[null,null,null,1400]
[]
[null,"2. Procéder à l’enregistrement comptable correspondant sur bordereau de saisie."]
[]
[null,"Bordereau de saisie"]
[null,"Dates","Comptes","Intitulés",null,"Débit","Crédit"]
[null,"2011-07-05",401,{"$f":"IF(C17=\"\",\"\",VLOOKUP(C17,Comptes,2,FALSE))","v":"Fournisseurs"},{"$error":"#N/A"},1400]
[null,null,512,"Banques",{"$error":"#N/A"},null,1400]
[null,null,null,"",""]
[null,null,null,"",""]
[null,"Totaux",null,null,null,{"$f":"SUM(F17:F20)","v":1400},{"$f":"SUM(G17:G20)","v":1400}]
[]
[null,"3. Effectuer le report dans les comptes de l’entreprise."]
[]
[null,"Compte",{"$f":"C17","v":401},null,"Compte",{"$f":"C18","v":512}]
[null,"Débit","Crédit",null,"Débit","Crédit"]
[null,{"$f":"F17","v":1400},{"$f":"G17","v":0},null,{"$f":"F18","v":0},{"$f":"G18","v":1400}]
[]
[]
[null,{"$f":"IF(SUM(B27:B29)-SUM(C27:C29)>0,\"Solde Débiteur : \",IF(SUM(B27:B29)-SUM(C27:C29)<0,\"Solde créditeur : \",\"\"))","v":"Solde Débiteur : "},{"$f":"IF((SUM(B27:B29)-SUM(C27:C29))>0,SUM(B27:B29)-SUM(C27:C29),-(SUM(B27:B29)-SUM(C27:C29)))","v":1400},null,{"$f":"IF(SUM(E27:E29)-SUM(F27:F29)>0,\"Solde Débiteur : \",IF(SUM(E27:E29)-SUM(F27:F29)<0,\"Solde créditeur : \",\"\"))","v":"Solde créditeur : "},{"$f":"IF((SUM(E27:E29)-SUM(F27:F29))>0,SUM(E27:E29)-SUM(F27:F29),-(SUM(E27:E29)-SUM(F27:F29)))","v":1400}]
[]
[null,"Compte",{"$f":"C19","v":0},null,"Compte",{"$f":"C20","v":0}]
[null,"Débit","Crédit",null,"Débit","Crédit"]
[null,{"$f":"F19","v":0},{"$f":"G19","v":0},null,{"$f":"F20","v":0}]
[]
[]
[null,{"$f":"IF(SUM(B34:B36)-SUM(C34:C36)>0,\"Solde Débiteur : \",IF(SUM(B34:B36)-SUM(C34:C36)<0,\"Solde créditeur : \",\"\"))","v":""},{"$f":"IF((SUM(B33:B36)-SUM(C33:C36))>0,SUM(B33:B36)-SUM(C33:C36),-(SUM(B33:B36)-SUM(C33:C36)))","v":0},null,{"$f":"IF(SUM(E34:E36)-SUM(F34:F36)>0,\"Solde Débiteur : \",IF(SUM(E34:E36)-SUM(F34:F36)<0,\"Solde créditeur : \",\"\"))","v":""},{"$f":"IF((SUM(E33:E36)-SUM(F33:F36))>0,SUM(E33:E36)-SUM(F33:F36),-(SUM(E33:E36)-SUM(F33:F36)))","v":0}]
[]
[null,"4. Evaluer les conséquences sur le patrimoine de l’entreprise en présentant son bilan après l'opération."]
[]
[null,"BILAN"]
[null,"ACTIF",null,null,"PASSIF"]
[null,"ACTIF IMMOBILISE",null,{"$f":"SUM(D45:D47)","v":0},"CAPITAUX PROPRES",null,{"$f":"SUM(G45:G46)","v":0}]
[]
[null,"Immobilisations Incorporelles",null,null,"Capital"]
[null,"Immobilisations Corporelles",null,null,"Résultat",null,{"$f":"IF(AND(D72=\"\",G72=\"\"),\"\",IF(D72=\"\",-G72,D72))","v":""}]
[null,"Immobilisations Financières"]
[]
[null,"ACTIF CIRCULANT",null,{"$f":"SUM(D51:D53)","v":-1400},"DETTES",null,{"$f":"SUM(G51:G52)","v":-1400}]
[]
[null,"Stocks",null,null,"Emprunts"]
[null,"Créances",null,null,"Fournisseurs",null,-1400]
[null,"Disponibilités",null,-1400]
[]
[null,"TOTAUX",null,{"$f":"D43+D49","v":-1400},"TOTAUX",null,{"$f":"G43+G49","v":-1400}]
[]
[null,"5. Evaluer les conséquences sur l'activité de l’entreprise en présentant son compte de résultat après l'opération."]
[]
[null,"COMPTE DE RESULTAT"]
[null,"CHARGES ",null,null,"PRODUITS "]
[null,"CHARGES EXPLOITATION",null,{"$f":"SUM(D63:D65)","v":0},"PRODUITS EXPLOITATION",null,{"$f":"G63","v":0}]
[]
[null,"Achats de marchandises",null,null,"Vente ou prestation de service"]
[null,"Autres charges externes"]
[null,"Dotations aux amortissements"]
[]
[null,"CHARGES FINANCIERES",null,null,"PRODUITS FINANCIERS"]
[]
[]
[null,"CHARGES EXCEPTIONNELLES",null,null,"PRODUITS EXCEPTIONNELS"]
[null,"Sous Total",null,{"$f":"D61+D67+D70","v":0},"Sous Total",null,{"$f":"G61+G67+G70","v":0}]
[null,"RESULTAT ","(Bénéfice)",{"$f":"IF(G71-D71>0,G71-D71,\"\")","v":""},"RESULTAT ","(Perte)",{"$f":"IF(D71-G71>0,D71-G71,\"\")","v":""}]
[null,"TOTAUX",null,{"$f":"SUM(D72,D71)","v":0},"TOTAUX",null,{"$f":"SUM(G72,G71)","v":0}]

{"sheet":"Document 11","index":15,"n_rows":73,"n_cols":7,"rows_kept":73,"cut":false,"hidden":false,"merged":[[58,1,58,6],[59,1,59,3],[59,4,59,6],[72,1,72,2],[72,4,72,5],[54,1,54,2],[54,4,54,5],[14,1,14,6],[15,3,15,4],[16,3,16,4],[17,3,17,4],[18,3,18,4],[19,3,19,4],[20,1,20,4],[40,1,40,6],[41,1,41,3],[41,4,41,6],[48,4,48,5],[1,2,1,6],[3,2,3,6],[8,1,8,2],[8,5,8,6],[9,1,10,2],[9,3,9,4],[9,5,10,6],[10,3,10,4]]}
[]
[null,"Opération 11","Recettes du mois de Juin"]
[]
[null,"Document 11","Facturettes - Bordereau de recettes"]
[]
[]
[null,"1. Analyser l’opération suivant une démarche pédagogique choisie (Emploi/Ressource ou Origine/Destination)."]
[]
[null,"Destination/Emploi",null,null,null,"Origine/Ressources"]
[null,"Augmentation de l'avoir en banque\nAugmentation de l'avoir en caisse",null,"Montant",null,"Prestations de services"]
[null,null,null,3150]
[]
[null,"2. Procéder à l’enregistrement comptable correspondant sur bordereau de saisie."]
[]
[null,"Bordereau de saisie"]
[null,"Dates","Comptes","Intitulés",null,"Débit","Crédit"]
[null,"2011-06-30",512,{"$f":"IF(C17=\"\",\"\",VLOOKUP(C17,Comptes,2,FALSE))","v":"Banques"},{"$error":"#N/A"},2900]
[null,null,530,"Caisse",{"$error":"#N/A"},250]
[null,null,706,"Prestations de services",{"$error":"#N/A"},null,3150]
[null,null,null,"",""]
[null,"Totaux",null,null,null,{"$f":"SUM(F17:F20)","v":3150},{"$f":"SUM(G17:G20)","v":3150}]
[]
[null,"3. Effectuer le report dans les comptes de l’entreprise."]
[]
[null,"Compte",{"$f":"C17","v":512},null,"Compte",{"$f":"C18","v":530}]
[null,"Débit","Crédit",null,"Débit","Crédit"]
[null,{"$f":"F17","v":2900},{"$f":"G17","v":0},null,{"$f":"F18","v":250},{"$f":"G18","v":0}]
[]
[]
[null,{"$f":"IF(SUM(B27:B29)-SUM(C27:C29)>0,\"Solde Débiteur : \",IF(SUM(B27:B29)-SUM(C27:C29)<0,\"Solde créditeur : \",\"\"))","v":"Solde Débiteur : "},{"$f":"IF((SUM(B27:B29)-SUM(C27:C29))>0,SUM(B27:B29)-SUM(C27:C29),-(SUM(B27:B29)-SUM(C27:C29)))","v":2900},null,{"$f":"IF(SUM(E27:E29)-SUM(F27:F29)>0,\"Solde Débiteur : \",IF(SUM(E27:E29)-SUM(F27:F29)<0,\"Solde créditeur : \",\"\"))","v":"Solde Débiteur : "},{"$f":"IF((SUM(E27:E29)-SUM(F27:F29))>0,SUM(E27:E29)-SUM(F27:F29),-(SUM(E27:E29)-SUM(F27:F29)))","v":250}]
[]
[null,"Compte",{"$f":"C19","v":706},null,"Compte",{"$f":"C20","v":0}]
[null,"Débit","Crédit",null,"Débit","Crédit"]
[null,{"$f":"F19","v":0},{"$f":"G19","v":3150},null,{"$f":"F20","v":0}]
[]
[]
[null,{"$f":"IF(SUM(B34:B36)-SUM(C34:C36)>0,\"Solde Débiteur : \",IF(SUM(B34:B36)-SUM(C34:C36)<0,\"Solde créditeur : \",\"\"))","v":"Solde créditeur : "},{"$f":"IF((SUM(B33:B36)-SUM(C33:C36))>0,SUM(B33:B36)-SUM(C33:C36),-(SUM(B33:B36)-SUM(C33:C36)))","v":3150},null,{"$f":"IF(SUM(E34:E36)-SUM(F34:F36)>0,\"Solde Débiteur : \",IF(SUM(E34:E36)-SUM(F34:F36)<0,\"Solde créditeur : \",\"\"))","v":""},{"$f":"IF((SUM(E33:E36)-SUM(F33:F36))>0,SUM(E33:E36)-SUM(F33:F36),-(SUM(E33:E36)-SUM(F33:F36)))","v":0}]
[]
[null,"4. Evaluer les conséquences sur le patrimoine de l’entreprise en présentant son bilan après l'opération."]
[]
[null,"BILAN"]
[null,"ACTIF",null,null,"PASSIF"]
[null,"ACTIF IMMOBILISE",null,{"$f":"SUM(D45:D47)","v":0},"CAPITAUX PROPRES",null,{"$f":"SUM(G45:G46)","v":3150}]
[]
[null,"Immobilisations Incorporelles",null,null,"Capital"]
[null,"Immobilisations Corporelles",null,null,"Résultat",null,{"$f":"IF(AND(D72=\"\",G72=\"\"),\"\",IF(D72=\"\",-G72,D72))","v":3150}]
[null,"Immobilisations Financières"]
[]
[null,"ACTIF CIRCULANT",null,{"$f":"SUM(D51:D53)","v":3150},"DETTES",null,{"$f":"SUM(G51:G52)","v":0}]
[]
[null,"Stocks",null,null,"Emprunts"]
[null,"Créances",null,null,"Fournisseurs"]
[null,"Disponibilités",null,3150]
[]
[null,"TOTAUX",null,{"$f":"D43+D49","v":3150},"TOTAUX",null,{"$f":"G43+G49","v":3150}]
[]
[null,"5. Evaluer les conséquences sur l'activité de l’entreprise en présentant son compte de résultat après l'opération."]
[]
[null,"COMPTE DE RESULTAT"]
[null,"CHARGES ",null,null,"PRODUITS "]
[null,"CHARGES EXPLOITATION",null,{"$f":"SUM(D63:D65)","v":0},"PRODUITS EXPLOITATION",null,{"$f":"G63","v":3150}]
[]
[null,"Achats de marchandises",null,null,"Vente ou prestation de service",null,3150]
[null,"Autres charges externes"]
[null,"Dotations aux amortissements"]
[]
[null,"CHARGES FINANCIERES",null,null,"PRODUITS FINANCIERS"]
[]
[]
[null,"CHARGES EXCEPTIONNELLES",null,null,"PRODUITS EXCEPTIONNELS"]
[null,"Sous Total",null,{"$f":"D61+D67+D70","v":0},"Sous Total",null,{"$f":"G61+G67+G70","v":3150}]
[null,"RESULTAT ","(Bénéfice)",{"$f":"IF(G71-D71>0,G71-D71,\"\")","v":3150},"RESULTAT ","(Perte)",{"$f":"IF(D71-G71>0,D71-G71,\"\")","v":""}]
[null,"TOTAUX",null,{"$f":"SUM(D72,D71)","v":3150},"TOTAUX",null,{"$f":"SUM(G72,G71)","v":3150}]

{"sheet":"Document 12","index":16,"n_rows":73,"n_cols":7,"rows_kept":73,"cut":false,"hidden":false,"merged":[[58,1,58,6],[59,1,59,3],[59,4,59,6],[72,1,72,2],[72,4,72,5],[54,1,54,2],[54,4,54,5],[14,1,14,6],[15,3,15,4],[16,3,16,4],[17,3,17,4],[18,3,18,4],[19,3,19,4],[20,1,20,4],[40,1,40,6],[41,1,41,3],[41,4,41,6],[48,4,48,5],[1,2,1,6],[3,2,3,6],[8,1,8,2],[8,5,8,6],[9,1,10,2],[9,3,9,4],[9,5,10,6],[10,3,10,4]]}
[]
[null,"Opération 12","Recettes du mois de Juin"]
[]
[null,"Document 12","Facturettes - Bordereau de recettes"]
[]
[]
[null,"1. Analyser l’opération suivant une démarche pédagogique choisie (Emploi/Ressource ou Origine/Destination)."]
[]
[null,"Destination/Emploi",null,null,null,"Origine/Ressources"]
[null,"Augmentation de l'avoir en banque\nAugmentation de l'avoir en caisse",null,"Montant",null,"Prestations de services"]
[null,null,null,4840]
[]
[null,"2. Procéder à l’enregistrement comptable correspondant sur bordereau de saisie."]
[]
[null,"Bordereau de saisie"]
[null,"Dates","Comptes","Intitulés",null,"Débit","Crédit"]
[null,"2011-07-31",512,{"$f":"IF(C17=\"\",\"\",VLOOKUP(C17,Comptes,2,FALSE))","v":"Banques"},{"$error":"#N/A"},4400]
[null,null,530,"Caisse",{"$error":"#N/A"},440]
[null,null,706,"Prestations de services",{"$error":"#N/A"},null,4840]
[null,null,null,"",""]
[null,"Totaux",null,null,null,{"$f":"SUM(F17:F20)","v":4840},{"$f":"SUM(G17:G20)","v":4840}]
[]
[null,"3. Effectuer le report dans les comptes de l’entreprise."]
[]
[null,"Compte",{"$f":"C17","v":512},null,"Compte",{"$f":"C18","v":530}]
[null,"Débit","Crédit",null,"Débit","Crédit"]
[null,{"$f":"F17","v":4400},{"$f":"G17","v":0},null,{"$f":"F18","v":440},{"$f":"G18","v":0}]
[]
[]
[null,{"$f":"IF(SUM(B27:B29)-SUM(C27:C29)>0,\"Solde Débiteur : \",IF(SUM(B27:B29)-SUM(C27:C29)<0,\"Solde créditeur : \",\"\"))","v":"Solde Débiteur : "},{"$f":"IF((SUM(B27:B29)-SUM(C27:C29))>0,SUM(B27:B29)-SUM(C27:C29),-(SUM(B27:B29)-SUM(C27:C29)))","v":4400},null,{"$f":"IF(SUM(E27:E29)-SUM(F27:F29)>0,\"Solde Débiteur : \",IF(SUM(E27:E29)-SUM(F27:F29)<0,\"Solde créditeur : \",\"\"))","v":"Solde Débiteur : "},{"$f":"IF((SUM(E27:E29)-SUM(F27:F29))>0,SUM(E27:E29)-SUM(F27:F29),-(SUM(E27:E29)-SUM(F27:F29)))","v":440}]
[]
[null,"Compte",{"$f":"C19","v":706},null,"Compte",{"$f":"C20","v":0}]
[null,"Débit","Crédit",null,"Débit","Crédit"]
[null,{"$f":"F19","v":0},{"$f":"G19","v":4840},null,{"$f":"F20","v":0}]
[]
[]
[null,{"$f":"IF(SUM(B34:B36)-SUM(C34:C36)>0,\"Solde Débiteur : \",IF(SUM(B34:B36)-SUM(C34:C36)<0,\"Solde créditeur : \",\"\"))","v":"Solde créditeur : "},{"$f":"IF((SUM(B33:B36)-SUM(C33:C36))>0,SUM(B33:B36)-SUM(C33:C36),-(SUM(B33:B36)-SUM(C33:C36)))","v":4840},null,{"$f":"IF(SUM(E34:E36)-SUM(F34:F36)>0,\"Solde Débiteur : \",IF(SUM(E34:E36)-SUM(F34:F36)<0,\"Solde créditeur : \",\"\"))","v":""},{"$f":"IF((SUM(E33:E36)-SUM(F33:F36))>0,SUM(E33:E36)-SUM(F33:F36),-(SUM(E33:E36)-SUM(F33:F36)))","v":0}]
[]
[null,"4. Evaluer les conséquences sur le patrimoine de l’entreprise en présentant son bilan après l'opération."]
[]
[null,"BILAN"]
[null,"ACTIF",null,null,"PASSIF"]
[null,"ACTIF IMMOBILISE",null,{"$f":"SUM(D45:D47)","v":0},"CAPITAUX PROPRES",null,{"$f":"SUM(G45:G46)","v":4840}]
[]
[null,"Immobilisations Incorporelles",null,null,"Capital"]
[null,"Immobilisations Corporelles",null,null,"Résultat",null,{"$f":"IF(AND(D72=\"\",G72=\"\"),\"\",IF(D72=\"\",-G72,D72))","v":4840}]
[null,"Immobilisations Financières"]
[]
[null,"ACTIF CIRCULANT",null,{"$f":"SUM(D51:D53)","v":4840},"DETTES",null,{"$f":"SUM(G51:G52)","v":0}]
[]
[null,"Stocks",null,null,"Emprunts"]
[null,"Créances",null,null,"Fournisseurs"]
[null,"Disponibilités",null,4840]
[]
[null,"TOTAUX",null,{"$f":"D43+D49","v":4840},"TOTAUX",null,{"$f":"G43+G49","v":4840}]
[]
[null,"5. Evaluer les conséquences sur l'activité de l’entreprise en présentant son compte de résultat après l'opération."]
[]
[null,"COMPTE DE RESULTAT"]
[null,"CHARGES ",null,null,"PRODUITS "]
[null,"CHARGES EXPLOITATION",null,{"$f":"SUM(D63:D65)","v":0},"PRODUITS EXPLOITATION",null,{"$f":"G63","v":4840}]
[]
[null,"Achats de marchandises",null,null,"Vente ou prestation de service",null,4840]
[null,"Autres charges externes"]
[null,"Dotations aux amortissements"]
[]
[null,"CHARGES FINANCIERES",null,null,"PRODUITS FINANCIERS"]
[]
[]
[null,"CHARGES EXCEPTIONNELLES",null,null,"PRODUITS EXCEPTIONNELS"]
[null,"Sous Total",null,{"$f":"D61+D67+D70","v":0},"Sous Total",null,{"$f":"G61+G67+G70","v":4840}]
[null,"RESULTAT ","(Bénéfice)",{"$f":"IF(G71-D71>0,G71-D71,\"\")","v":4840},"RESULTAT ","(Perte)",{"$f":"IF(D71-G71>0,D71-G71,\"\")","v":""}]
[null,"TOTAUX",null,{"$f":"SUM(D72,D71)","v":4840},"TOTAUX",null,{"$f":"SUM(G72,G71)","v":4840}]

{"sheet":"Document 13","index":17,"n_rows":73,"n_cols":7,"rows_kept":73,"cut":false,"hidden":false,"merged":[[58,1,58,6],[59,1,59,3],[59,4,59,6],[72,1,72,2],[72,4,72,5],[54,1,54,2],[54,4,54,5],[14,1,14,6],[15,3,15,4],[16,3,16,4],[17,3,17,4],[18,3,18,4],[19,3,19,4],[20,1,20,4],[40,1,40,6],[41,1,41,3],[41,4,41,6],[48,4,48,5],[1,2,1,6],[3,2,3,6],[8,1,8,2],[8,5,8,6],[9,1,10,2],[9,3,9,4],[9,5,10,6],[10,3,10,4]]}
[]
[null,"Opération 13","Achat de produits d'entretien"]
[]
[null,"Document 13","Facture du fournisseur LAV'ONET"]
[]
[]
[null,"1. Analyser l’opération suivant une démarche pédagogique choisie (Emploi/Ressource ou Origine/Destination)."]
[]
[null,"Destination/Emploi",null,null,null,"Origine/Ressources"]
[null,"Produits d'entretien",null,"Montant",null,"Augmentation des dettes fournisseurs"]
[null,null,null,740]
[]
[null,"2. Procéder à l’enregistrement comptable correspondant sur bordereau de saisie."]
[]
[null,"Bordereau de saisie"]
[null,"Dates","Comptes","Intitulés",null,"Débit","Crédit"]
[null,"2011-08-10",6063,{"$f":"IF(C17=\"\",\"\",VLOOKUP(C17,Comptes,2,FALSE))","v":"Fournitures d'entretien et de petit équipement"},{"$error":"#N/A"},740]
[null,null,401,"Fournisseurs",{"$error":"#N/A"},null,740]
[null,null,null,"",""]
[null,null,null,"",""]
[null,"Totaux",null,null,null,{"$f":"SUM(F17:F20)","v":740},{"$f":"SUM(G17:G20)","v":740}]
[]
[null,"3. Effectuer le report dans les comptes de l’entreprise."]
[]
[null,"Compte",{"$f":"C17","v":6063},null,"Compte",{"$f":"C18","v":401}]
[null,"Débit","Crédit",null,"Débit","Crédit"]
[null,{"$f":"F17","v":740},{"$f":"G17","v":0},null,{"$f":"F18","v":0},{"$f":"G18","v":740}]
[]
[]
[null,{"$f":"IF(SUM(B27:B29)-SUM(C27:C29)>0,\"Solde Débiteur : \",IF(SUM(B27:B29)-SUM(C27:C29)<0,\"Solde créditeur : \",\"\"))","v":"Solde Débiteur : "},{"$f":"IF((SUM(B27:B29)-SUM(C27:C29))>0,SUM(B27:B29)-SUM(C27:C29),-(SUM(B27:B29)-SUM(C27:C29)))","v":740},null,{"$f":"IF(SUM(E27:E29)-SUM(F27:F29)>0,\"Solde Débiteur : \",IF(SUM(E27:E29)-SUM(F27:F29)<0,\"Solde créditeur : \",\"\"))","v":"Solde créditeur : "},{"$f":"IF((SUM(E27:E29)-SUM(F27:F29))>0,SUM(E27:E29)-SUM(F27:F29),-(SUM(E27:E29)-SUM(F27:F29)))","v":740}]
[]
[null,"Compte",{"$f":"C19","v":0},null,"Compte",{"$f":"C20","v":0}]
[null,"Débit","Crédit",null,"Débit","Crédit"]
[null,{"$f":"F19","v":0},{"$f":"G19","v":0},null,{"$f":"F20","v":0}]
[]
[]
[null,{"$f":"IF(SUM(B34:B36)-SUM(C34:C36)>0,\"Solde Débiteur : \",IF(SUM(B34:B36)-SUM(C34:C36)<0,\"Solde créditeur : \",\"\"))","v":""},{"$f":"IF((SUM(B33:B36)-SUM(C33:C36))>0,SUM(B33:B36)-SUM(C33:C36),-(SUM(B33:B36)-SUM(C33:C36)))","v":0},null,{"$f":"IF(SUM(E34:E36)-SUM(F34:F36)>0,\"Solde Débiteur : \",IF(SUM(E34:E36)-SUM(F34:F36)<0,\"Solde créditeur : \",\"\"))","v":""},{"$f":"IF((SUM(E33:E36)-SUM(F33:F36))>0,SUM(E33:E36)-SUM(F33:F36),-(SUM(E33:E36)-SUM(F33:F36)))","v":0}]
[]
[null,"4. Evaluer les conséquences sur le patrimoine de l’entreprise en présentant son bilan après l'opération."]
[]
[null,"BILAN"]
[null,"ACTIF",null,null,"PASSIF"]
[null,"ACTIF IMMOBILISE",null,{"$f":"SUM(D45:D47)","v":0},"CAPITAUX PROPRES",null,{"$f":"SUM(G45:G46)","v":-740}]
[]
[null,"Immobilisations Incorporelles",null,null,"Capital"]
[null,"Immobilisations Corporelles",null,null,"Résultat",null,{"$f":"IF(AND(D72=\"\",G72=\"\"),\"\",IF(D72=\"\",-G72,D72))","v":-740}]
[null,"Immobilisations Financières"]
[]
[null,"ACTIF CIRCULANT",null,{"$f":"SUM(D51:D53)","v":0},"DETTES",null,{"$f":"SUM(G51:G52)","v":740}]
[]
[null,"Stocks",null,null,"Emprunts"]
[null,"Créances",null,null,"Fournisseurs",null,740]
[null,"Disponibilités"]
[]
[null,"TOTAUX",null,{"$f":"D43+D49","v":0},"TOTAUX",null,{"$f":"G43+G49","v":0}]
[]
[null,"5. Evaluer les conséquences sur l'activité de l’entreprise en présentant son compte de résultat après l'opération."]
[]
[null,"COMPTE DE RESULTAT"]
[null,"CHARGES ",null,null,"PRODUITS "]
[null,"CHARGES EXPLOITATION",null,{"$f":"SUM(D63:D65)","v":740},"PRODUITS EXPLOITATION",null,{"$f":"G63","v":0}]
[]
[null,"Achats de marchandises",null,null,"Vente ou prestation de service"]
[null,"Autres charges externes",null,740]
[null,"Dotations aux amortissements"]
[]
[null,"CHARGES FINANCIERES",null,null,"PRODUITS FINANCIERS"]
[]
[]
[null,"CHARGES EXCEPTIONNELLES",null,null,"PRODUITS EXCEPTIONNELS"]
[null,"Sous Total",null,{"$f":"D61+D67+D70","v":740},"Sous Total",null,{"$f":"G61+G67+G70","v":0}]
[null,"RESULTAT ","(Bénéfice)",{"$f":"IF(G71-D71>0,G71-D71,\"\")","v":""},"RESULTAT ","(Perte)",{"$f":"IF(D71-G71>0,D71-G71,\"\")","v":740}]
[null,"TOTAUX",null,{"$f":"SUM(D72,D71)","v":740},"TOTAUX",null,{"$f":"SUM(G72,G71)","v":740}]

{"sheet":"Document 14","index":18,"n_rows":73,"n_cols":7,"rows_kept":73,"cut":false,"hidden":false,"merged":[[58,1,58,6],[59,1,59,3],[59,4,59,6],[72,1,72,2],[72,4,72,5],[54,1,54,2],[54,4,54,5],[14,1,14,6],[15,3,15,4],[16,3,16,4],[17,3,17,4],[18,3,18,4],[19,3,19,4],[20,1,20,4],[40,1,40,6],[41,1,41,3],[41,4,41,6],[48,4,48,5],[1,2,1,6],[3,2,3,6],[8,1,8,2],[8,5,8,6],[9,1,10,2],[9,3,9,4],[9,5,10,6],[10,3,10,4]]}
[]
[null,"Opération 14","Recettes du mois de Juin"]
[]
[null,"Document 14","Facturettes - Bordereau de recettes"]
[]
[]
[null,"1. Analyser l’opération suivant une démarche pédagogique choisie (Emploi/Ressource ou Origine/Destination)."]
[]
[null,"Destination/Emploi",null,null,null,"Origine/Ressources"]
[null,"Augmentation de l'avoir en banque\nAugmentation de l'avoir en caisse",null,"Montant",null,"Prestations de services"]
[null,null,null,7670]
[]
[null,"2. Procéder à l’enregistrement comptable correspondant sur bordereau de saisie."]
[]
[null,"Bordereau de saisie"]
[null,"Dates","Comptes","Intitulés",null,"Débit","Crédit"]
[null,"2011-08-31",512,{"$f":"IF(C17=\"\",\"\",VLOOKUP(C17,Comptes,2,FALSE))","v":"Banques"},{"$error":"#N/A"},7010]
[null,null,530,"Caisse",{"$error":"#N/A"},660]
[null,null,706,"Prestations de services",{"$error":"#N/A"},null,7670]
[null,null,null,"",""]
[null,"Totaux",null,null,null,{"$f":"SUM(F17:F20)","v":7670},{"$f":"SUM(G17:G20)","v":7670}]
[]
[null,"3. Effectuer le report dans les comptes de l’entreprise."]
[]
[null,"Compte",{"$f":"C17","v":512},null,"Compte",{"$f":"C18","v":530}]
[null,"Débit","Crédit",null,"Débit","Crédit"]
[null,{"$f":"F17","v":7010},{"$f":"G17","v":0},null,{"$f":"F18","v":660},{"$f":"G18","v":0}]
[]
[]
[null,{"$f":"IF(SUM(B27:B29)-SUM(C27:C29)>0,\"Solde Débiteur : \",IF(SUM(B27:B29)-SUM(C27:C29)<0,\"Solde créditeur : \",\"\"))","v":"Solde Débiteur : "},{"$f":"IF((SUM(B27:B29)-SUM(C27:C29))>0,SUM(B27:B29)-SUM(C27:C29),-(SUM(B27:B29)-SUM(C27:C29)))","v":7010},null,{"$f":"IF(SUM(E27:E29)-SUM(F27:F29)>0,\"Solde Débiteur : \",IF(SUM(E27:E29)-SUM(F27:F29)<0,\"Solde créditeur : \",\"\"))","v":"Solde Débiteur : "},{"$f":"IF((SUM(E27:E29)-SUM(F27:F29))>0,SUM(E27:E29)-SUM(F27:F29),-(SUM(E27:E29)-SUM(F27:F29)))","v":660}]
[]
[null,"Compte",{"$f":"C19","v":706},null,"Compte",{"$f":"C20","v":0}]
[null,"Débit","Crédit",null,"Débit","Crédit"]
[null,{"$f":"F19","v":0},{"$f":"G19","v":7670},null,{"$f":"F20","v":0}]
[]
[]
[null,{"$f":"IF(SUM(B34:B36)-SUM(C34:C36)>0,\"Solde Débiteur : \",IF(SUM(B34:B36)-SUM(C34:C36)<0,\"Solde créditeur : \",\"\"))","v":"Solde créditeur : "},{"$f":"IF((SUM(B33:B36)-SUM(C33:C36))>0,SUM(B33:B36)-SUM(C33:C36),-(SUM(B33:B36)-SUM(C33:C36)))","v":7670},null,{"$f":"IF(SUM(E34:E36)-SUM(F34:F36)>0,\"Solde Débiteur : \",IF(SUM(E34:E36)-SUM(F34:F36)<0,\"Solde créditeur : \",\"\"))","v":""},{"$f":"IF((SUM(E33:E36)-SUM(F33:F36))>0,SUM(E33:E36)-SUM(F33:F36),-(SUM(E33:E36)-SUM(F33:F36)))","v":0}]
[]
[null,"4. Evaluer les conséquences sur le patrimoine de l’entreprise en présentant son bilan après l'opération."]
[]
[null,"BILAN"]
[null,"ACTIF",null,null,"PASSIF"]
[null,"ACTIF IMMOBILISE",null,{"$f":"SUM(D45:D47)","v":0},"CAPITAUX PROPRES",null,{"$f":"SUM(G45:G46)","v":7670}]
[]
[null,"Immobilisations Incorporelles",null,null,"Capital"]
[null,"Immobilisations Corporelles",null,null,"Résultat",null,{"$f":"IF(AND(D72=\"\",G72=\"\"),\"\",IF(D72=\"\",-G72,D72))","v":7670}]
[null,"Immobilisations Financières"]
[]
[null,"ACTIF CIRCULANT",null,{"$f":"SUM(D51:D53)","v":7670},"DETTES",null,{"$f":"SUM(G51:G52)","v":0}]
[]
[null,"Stocks",null,null,"Emprunts"]
[null,"Créances",null,null,"Fournisseurs"]
[null,"Disponibilités",null,7670]
[]
[null,"TOTAUX",null,{"$f":"D43+D49","v":7670},"TOTAUX",null,{"$f":"G43+G49","v":7670}]
[]
[null,"5. Evaluer les conséquences sur l'activité de l’entreprise en présentant son compte de résultat après l'opération."]
[]
[null,"COMPTE DE RESULTAT"]
[null,"CHARGES ",null,null,"PRODUITS "]
[null,"CHARGES EXPLOITATION",null,{"$f":"SUM(D63:D65)","v":0},"PRODUITS EXPLOITATION",null,{"$f":"G63","v":7670}]
[]
[null,"Achats de marchandises",null,null,"Vente ou prestation de service",null,7670]
[null,"Autres charges externes"]
[null,"Dotations aux amortissements"]
[]
[null,"CHARGES FINANCIERES",null,null,"PRODUITS FINANCIERS"]
[]
[]
[null,"CHARGES EXCEPTIONNELLES",null,null,"PRODUITS EXCEPTIONNELS"]
[null,"Sous Total",null,{"$f":"D61+D67+D70","v":0},"Sous Total",null,{"$f":"G61+G67+G70","v":7670}]
[null,"RESULTAT ","(Bénéfice)",{"$f":"IF(G71-D71>0,G71-D71,\"\")","v":7670},"RESULTAT ","(Perte)",{"$f":"IF(D71-G71>0,D71-G71,\"\")","v":""}]
[null,"TOTAUX",null,{"$f":"SUM(D72,D71)","v":7670},"TOTAUX",null,{"$f":"SUM(G72,G71)","v":7670}]

{"sheet":"Document 15","index":19,"n_rows":73,"n_cols":7,"rows_kept":73,"cut":false,"hidden":false,"merged":[[58,1,58,6],[59,1,59,3],[59,4,59,6],[72,1,72,2],[72,4,72,5],[54,1,54,2],[54,4,54,5],[14,1,14,6],[15,3,15,4],[16,3,16,4],[17,3,17,4],[18,3,18,4],[19,3,19,4],[20,1,20,4],[40,1,40,6],[41,1,41,3],[41,4,41,6],[48,4,48,5],[1,2,1,6],[3,2,3,6],[8,1,8,2],[8,5,8,6],[9,1,10,2],[9,3,9,4],[9,5,10,6],[10,3,10,4]]}
[]
[null,"Opération 15","Consommation d'eau"]
[]
[null,"Document 15","Facture du fournisseur LEOVIA"]
[]
[]
[null,"1. Analyser l’opération suivant une démarche pédagogique choisie (Emploi/Ressource ou Origine/Destination)."]
[]
[null,"Destination/Emploi",null,null,null,"Origine/Ressources"]
[null,"Consommation d'eau",null,"Montant",null,"Augmentation des dettes fournisseurs"]
[null,null,null,1700]
[]
[null,"2. Procéder à l’enregistrement comptable correspondant sur bordereau de saisie."]
[]
[null,"Bordereau de saisie"]
[null,"Dates","Comptes","Intitulés",null,"Débit","Crédit"]
[null,"2011-09-10",6061,{"$f":"IF(C17=\"\",\"\",VLOOKUP(C17,Comptes,2,FALSE))","v":"Fournitures non stockables (eau, énergie…)"},{"$error":"#N/A"},1700]
[null,null,401,"Fournisseurs",{"$error":"#N/A"},null,1700]
[null,null,null,"",""]
[null,null,null,"",""]
[null,"Totaux",null,null,null,{"$f":"SUM(F17:F20)","v":1700},{"$f":"SUM(G17:G20)","v":1700}]
[]
[null,"3. Effectuer le report dans les comptes de l’entreprise."]
[]
[null,"Compte",{"$f":"C17","v":6061},null,"Compte",{"$f":"C18","v":401}]
[null,"Débit","Crédit",null,"Débit","Crédit"]
[null,{"$f":"F17","v":1700},{"$f":"G17","v":0},null,{"$f":"F18","v":0},{"$f":"G18","v":1700}]
[]
[]
[null,{"$f":"IF(SUM(B27:B29)-SUM(C27:C29)>0,\"Solde Débiteur : \",IF(SUM(B27:B29)-SUM(C27:C29)<0,\"Solde créditeur : \",\"\"))","v":"Solde Débiteur : "},{"$f":"IF((SUM(B27:B29)-SUM(C27:C29))>0,SUM(B27:B29)-SUM(C27:C29),-(SUM(B27:B29)-SUM(C27:C29)))","v":1700},null,{"$f":"IF(SUM(E27:E29)-SUM(F27:F29)>0,\"Solde Débiteur : \",IF(SUM(E27:E29)-SUM(F27:F29)<0,\"Solde créditeur : \",\"\"))","v":"Solde créditeur : "},{"$f":"IF((SUM(E27:E29)-SUM(F27:F29))>0,SUM(E27:E29)-SUM(F27:F29),-(SUM(E27:E29)-SUM(F27:F29)))","v":1700}]
[]
[null,"Compte",{"$f":"C19","v":0},null,"Compte",{"$f":"C20","v":0}]
[null,"Débit","Crédit",null,"Débit","Crédit"]
[null,{"$f":"F19","v":0},{"$f":"G19","v":0},null,{"$f":"F20","v":0}]
[]
[]
[null,{"$f":"IF(SUM(B34:B36)-SUM(C34:C36)>0,\"Solde Débiteur : \",IF(SUM(B34:B36)-SUM(C34:C36)<0,\"Solde créditeur : \",\"\"))","v":""},{"$f":"IF((SUM(B33:B36)-SUM(C33:C36))>0,SUM(B33:B36)-SUM(C33:C36),-(SUM(B33:B36)-SUM(C33:C36)))","v":0},null,{"$f":"IF(SUM(E34:E36)-SUM(F34:F36)>0,\"Solde Débiteur : \",IF(SUM(E34:E36)-SUM(F34:F36)<0,\"Solde créditeur : \",\"\"))","v":""},{"$f":"IF((SUM(E33:E36)-SUM(F33:F36))>0,SUM(E33:E36)-SUM(F33:F36),-(SUM(E33:E36)-SUM(F33:F36)))","v":0}]
[]
[null,"4. Evaluer les conséquences sur le patrimoine de l’entreprise en présentant son bilan après l'opération."]
[]
[null,"BILAN"]
[null,"ACTIF",null,null,"PASSIF"]
[null,"ACTIF IMMOBILISE",null,{"$f":"SUM(D45:D47)","v":0},"CAPITAUX PROPRES",null,{"$f":"SUM(G45:G46)","v":-1700}]
[]
[null,"Immobilisations Incorporelles",null,null,"Capital"]
[null,"Immobilisations Corporelles",null,null,"Résultat",null,{"$f":"IF(AND(D72=\"\",G72=\"\"),\"\",IF(D72=\"\",-G72,D72))","v":-1700}]
[null,"Immobilisations Financières"]
[]
[null,"ACTIF CIRCULANT",null,{"$f":"SUM(D51:D53)","v":0},"DETTES",null,{"$f":"SUM(G51:G52)","v":1700}]
[]
[null,"Stocks",null,null,"Emprunts"]
[null,"Créances",null,null,"Fournisseurs",null,1700]
[null,"Disponibilités"]
[]
[null,"TOTAUX",null,{"$f":"D43+D49","v":0},"TOTAUX",null,{"$f":"G43+G49","v":0}]
[]
[null,"5. Evaluer les conséquences sur l'activité de l’entreprise en présentant son compte de résultat après l'opération."]
[]
[null,"COMPTE DE RESULTAT"]
[null,"CHARGES ",null,null,"PRODUITS "]
[null,"CHARGES EXPLOITATION",null,{"$f":"SUM(D63:D65)","v":1700},"PRODUITS EXPLOITATION",null,{"$f":"G63","v":0}]
[]
[null,"Achats de marchandises",null,null,"Vente ou prestation de service"]
[null,"Autres charges externes",null,1700]
[null,"Dotations aux amortissements"]
[]
[null,"CHARGES FINANCIERES",null,null,"PRODUITS FINANCIERS"]
[]
[]
[null,"CHARGES EXCEPTIONNELLES",null,null,"PRODUITS EXCEPTIONNELS"]
[null,"Sous Total",null,{"$f":"D61+D67+D70","v":1700},"Sous Total",null,{"$f":"G61+G67+G70","v":0}]
[null,"RESULTAT ","(Bénéfice)",{"$f":"IF(G71-D71>0,G71-D71,\"\")","v":""},"RESULTAT ","(Perte)",{"$f":"IF(D71-G71>0,D71-G71,\"\")","v":1700}]
[null,"TOTAUX",null,{"$f":"SUM(D72,D71)","v":1700},"TOTAUX",null,{"$f":"SUM(G72,G71)","v":1700}]

{"sheet":"Plan comptable","index":20,"n_rows":978,"n_cols":2,"rows_kept":978,"cut":false,"hidden":true,"merged":[]}
[1,"COMPTES DE CAPITAUX"]
[10,"CAPITAL ET RESERVES"]
[101,"Capital"]
[1011,"Capital souscrit - non appelé"]
[1012,"Capital souscrit - appelé, non versé"]
[1013,"Capital souscrit - appelé, versé"]
[10131,"Capital non amorti"]
[10132,"Capital amorti"]
[1018,"Capital souscrit soumis à des réglementations particulières"]
[104,"Primes liées au capital social"]
[1041,"Primes d'émission"]
[1042,"Primes de fusion"]
[1043,"Primes d'apport"]
[1044,"Primes de conversion d'obligations en actions"]
[1045,"Bons de souscription d'actions"]
[105,"Ecarts de réévaluation"]
[1051,"Réserve spéciale de réévaluation"]
[1052,"Ecart de réévaluation libre"]
[1053,"Réserve de réévaluation"]
[1055,"Ecarts de réévaluation (autres opérations légales)"]
[1057,"Autres écarts de réévaluation en France"]
[1058,"Autres écarts de réévaluation à l'étranger"]
[106,"Réserves"]
[1061,"Réserve légale"]
[10611,"Réserve légale proprement dite"]
[10612,"Plus-values nettes à long terme"]
[1062,"Réserves indisponibles"]
[1063,"Réserves statutaires ou contractuelles"]
[1064,"Réserves réglementées"]
[10641,"Plus-values nettes à long terme"]
[10642,"Réserves consécutives à l'octroi de subventions d'investissement"]
[10648,"Autres réserves réglementées"]
[1068,"Autres réserves"]
[10681,"Réserve de propre assureur"]
[10682,"Réserves diverses"]
[107,"Ecarts d'équivalence"]
[108,"Compte de l'exploitatant"]
[109,"Actionnaires : capital souscrit - non appelé"]
[11,"REPORT A NOUVEAU (solde créditeur ou débiteur)"]
[110,"Report à nouveau (solde créditeur)"]
[119,"Report à nouveau (solde débiteur)"]
[12,"RESULTAT DE L'EXERCICE (bénéfice ou perte)"]
[120,"Résultat de l'exercice (bénéfice)"]
[129,"Résultat de l'exercice (perte)"]
[13,"SUBVENTION D'INVESTISSEMENT"]
[131,"Subventions d'équipement"]
[1311,"Etat"]
[1312,"Régions"]
[1313,"Départements"]
[1314,"Communes"]
[1315,"Collectivités publiques"]
[1316,"Entreprises publiques"]
[1317,"Entreprises et organismes privés"]
[1318,"Autres"]
[138,"Autres subventions d'investissement"]
[139,"Subventions d'investissement inscrites au compte de résultat"]
[1391,"Subventions d'équipement"]
[13911,"Etat"]
[13912,"Régions"]
[13913,"Départements"]
[13914,"Communes"]
[13915,"Collectivités publiques"]
[13916,"Entreprises publiques"]
[13917,"Entreprises et organismes privés"]
[13918,"Autres"]
[1398,"Autres subventions d'investissement"]
[14,"PROVISIONS REGLEMENTEES"]
[142,"Provisions réglementées relatives aux immobilisations"]
[1423,"Provisions pour reconstitution  des gisement miniers et pétroliers"]
[1424,"Provisions pour investissement (participation des salariés)"]
[143,"Provisions réglementées relatives aux stocks"]
[1431,"Hausse des prix"]
[1432,"Fluctuation des cours"]
[144,"Provisions réglementées relatives aux autres éléments de l'actif"]
[145,"Amortissements dérogatoires"]
[146,"Provision spéciale de réévaluation"]
[147,"Plus-values réinvesties"]
[148,"Autres provisions réglementées"]
[15,"PROVISIONS POUR RISQUES ET CHARGES"]
[151,"Provisions pour risques"]
[1511,"Provisions pour litiges"]
[1512,"Provisions pour garanties données aux clients"]
[1513,"Provisions pour pertes sur marchés à terme"]
[1514,"Provisions pour amendes et pénalités"]
[1515,"Provisions pour pertes de change"]
[1516,"Provisions pour pertes sur contrats"]
[1518,"Autres provisions pour risques"]
[153,"Provisions pour pensions et obligations similaires"]
[154,"Provisions pour restructurations"]
[155,"Provisions pour impôts"]
[156,"Provisions pour renouvellement des immobilisations"]
[157,"Provisions pour charges à répartir sur plusieurs exercices"]
[1572,"Provisions pour gros entretien ou grandes révisions"]
[158,"Autres provisions pour charges"]
[1581,"Provisions pour remises en état"]
[16,"EMPRUNTS ET DETTES ASSIMILEES"]
[161,"Emprunts obligataires convertibles"]
[163,"Autres emprunts obligataires"]
[164,"Emprunts auprès des établissements de crédit"]
[165,"Dépôts et cautionnements reçus"]
[1651,"Dépôts"]
[1655,"Cautionnements"]
[166,"Participation des salariés aux résultats"]
[1661,"Comptes bloqués"]
[1662,"Fonds de participation"]
[167,"Emprunts et dettes assortis de conditions particulières"]
[1671,"Emissions de titres participatifs"]
[1674,"Avances conditionnées de l'Etat"]
[1675,"Emprunts participatifs"]
[168,"Autres emprunts et dettes assimilées"]
[1681,"Autres emprunts"]
[1685,"Rentes viagères capitalisées"]
[1687,"Autres dettes"]
[16881,"Sur emprunts obligataires convertibles"]
[16883,"Sur autres emprunts obligataires"]
[16884,"Sur emprunts auprès des établissements de crédit"]
[16885,"Sur dépôts et cautionnements reçus"]
[16886,"Sur participation des salariés aux résultats"]
[16887,"Sur emprunts et dettes assortis de conditions particulières"]
[16888,"Sur autres emprunts et dettes assimilées"]
[169,"Primes de remboursement des obligations"]
[17,"DETTES RATTACHEES A DES PARTICIPATIONS"]
[171,"Dettes rattachées à des participations (groupes)"]
[174,"Dettes rattachées à des participations (hors groupes)"]
[178,"Dettes rattachées à des sociétés en participation"]
[1781,"Principal"]
[1788,"Intérêts courus"]
[18,"COMPTES DE LIAISON DES ETABLISSEMENTS ET SOCIETES EN PARTICIPATION"]
[181,"Comptes de liaison des établissements"]
[186,"Biens et prestations de services échangés entre établissements (charges)"]
[187,"Biens et prestations de services échangés entre établissements (produits)"]
[188,"Comptes de liaison des sociétés en participation"]
[2,"COMPTES D'IMMOBILISATIONS"]
[20,"IMMOBILISATIONS INCORPORELLES"]
[201,"Frais d'établissement"]
[2011,"Frais de constitution"]
[2012,"Frais de premier établissement"]
[20121,"Frais de prospection"]
[20122,"Frais de publicité"]
[2013,"Frais d'augmentation de capital et d'opérations diverses (fusions, scissions, transformations)"]
[203,"Frais de recherche et de développement"]
[205,"Concessions et droit similaires, brevets, licences, marques, procédés, logiciels, droits et valeurs similaires"]
[206,"Droit au bail"]
[207,"Fonds commercial"]
[208,"Autres immobilisations incorporelles"]
[21,"IMMOBILISATIONS CORPORELLES"]
[211,"Terrains"]
[2111,"Terrains nus"]
[2112,"Terrains aménagés"]
[2113,"Sous-sols et sur-sols"]
[2114,"Terrains de gisements"]
[21141,"Carrières"]
[2115,"Terrains bâtis"]
[21151,"Ensembles immobiliers industriels (A, B…)"]
[21155,"Ensembles immobiliers administratifs et commerciaux (A, B…)"]
[21158,"Autres ensembles immobiliers"]
[211581," - Affectés aux opérations professionnelles (A, B…)"]
[211588," - Affectés aux opérations non professionnelles (A, B…)"]
[2116,"Compte d'ordre sur immobilisations"]
[212,"Agencements et aménagements de terrains"]
[213,"Constructions"]
[2131,"Bâtiments"]
[21311,"Ensembles immobiliers industriels (A, B…)"]
[21315,"Ensembles immobiliers administratifs et commerciaux (A, B…)"]
[21318,"Autres ensembles immobiliers"]
[213181," - Affectés aux opérations professionnelles (A, B…)"]
[213188," - Affectés aux opérations non professionnelles (A, B…)"]
[2135,"Installations générales, agencements, aménagements des constructions"]
[2138,"Ouvrages d'infrastructure"]
[21381,"Voies de terre"]
[21382,"Voies de fer"]
[21383,"Voies d'eau"]
[21384,"Barrages"]
[21385,"Pistes d'aérodromes"]
[214,"Constructions sur sol d'autrui"]
[215,"Installations techniques, matériels et outillages industriels"]
[2151,"Installations complexes spécialisées"]
[21511,"Sur sol propre"]
[21514,"Sur sol d'autrui"]
[2153,"Installations à caractère spécifiques"]
[21531,"Sur sol propre"]
[21534,"Sur sol d'autrui"]
[2154,"Matériel industriel"]
[2155,"Outillage industriel"]
[2157,"Agencements et aménagements du matériel et outillage industriels"]
[218,"Autres immobilisations corporelles"]
[2181,"Installations générales, agencements, aménagements divers"]
[2182,"Matériel de transport"]
[2183,"Matériel de bureau et matériel informatique"]
[2184,"Mobilier"]
[2185,"Cheptel"]
[2186,"Emballages récupérables"]
[22,"IMMOBILISATIONS MISES EN CONCESSION"]
[21,"IMMOBILISATIONS EN COURS"]
[231,"Immobilisations corporelles en cours"]
[2312,"Terrains"]
[2313,"Constructions"]
[2315,"Installations techniques, matériels et outillages industriels"]
[2318,"Autres immobilisations corporelles"]
[232,"Immobilisations incorporelles en cours"]
[237,"Avances et acomptes versés sur immobilisations incorporelles"]
[238,"Avances et acomptes versés sur commandes d'immobilisations corporelles"]
[2382,"Terrains"]
[2383,"Constructions"]
[2385,"Installations techniques, matériels et outillages industriels"]
[2388,"Autres immobilisations corporelles"]
[25,"PART DES ENTREPRISES LIEES ET CREANCES SUR DES ENTREPRISES LIEES"]
[26,"PARTICIPATIONS ET CREANCES RATTACHEES A DES PARTICIPATIONS"]
[261,"Titres de participations"]
[2611,"Actions"]
[2618,"Autres titres"]
[266,"Autres formes de participation"]
[267,"Créances rattachées à des participations"]
[2671,"Créances rattachées à des participations (groupe)"]
[2674,"Créances rattachées à des participations (hors groupe)"]
[2675,"Versements représentatifs d'apports non capitalisés (appel de fonds)"]
[2676,"Avances consolidables"]
[2677,"Autres créances rattachées à des participations"]
[2678,"Intérêts courus"]
[268,"Créances rattachées à des sociétés en participation"]
[2681,"Principal"]
[2688,"Intérêts courus"]
[269,"Versements restant à effectuer sur titres de participation non libérés"]
[27,"AUTRES IMMOBILISATIONS FINANCIERES"]
[271,"Titres immobilisés autres que les titres immobilisés de l'activité de portefeuille (droit de propriété)"]
[2711,"Actions"]
[2718,"Autres titres"]
[272,"Titres immobilisés (droit de créance)"]
[2721,"Obligations"]
[2722,"Bons"]
[273,"Titres immobilisés de l'activité de portefeuille"]
[274,"Prêts"]
[2741,"Prêts participatifs"]
[2742,"Prêts aux associés"]
[2743,"Prêts au personnel"]
[2748,"Autres prêts"]
[275,"Dépôts et cautionnements versés"]
[2751,"Dépôts"]
[2755,"Cautionnements"]
[276,"Autres créances immobilisées"]
[2761,"Créances diverses"]
[2768,"Intérêts courus"]
[27682,"Sur titres immobilisés (droits de créance)"]
[27684,"Sur prêts"]
[27685,"Sur dépôts et cautionnements"]
[27688,"Sur créances diverses"]
[277,"Actions propres ou parts propres"]
[2771,"Actions propres ou parts propres"]
[2772,"Actions propres ou parts propres en voie d'annulation"]
[279,"versements restant à effectuer sur titres immobilisés non libérés"]
[28,"AMORTISSEMENTS DES IMMOBILISATIONS"]
[280,"Amortissements des immobilisations incorporelles"]
[2801,"Frais d'établissement"]
[2803,"Frais de recherche et de développement"]
[2805,"Concessions et droit similaires, brevets, licences, marques, procédés, logiciels, droits et valeurs similaires"]
[2807,"Fonds commercial"]
[2808,"Autres immobilisations incorporelles"]
[281,"Amortissements des immobilisations corporelles"]
[2811,"Terrains de gisement"]
[2812,"Agencements, aménagements de terrains"]
[2813,"Constructions"]
[2814,"Constructions sur sol d'autrui"]
[2815,"Installations, matériel et outillage industriels"]
[28154,"Amortissements du matériel industriel"]
[2818,"Autres immobilisations corporelles"]
[282,"Amortissements des immobilisations mises en concession"]
[29,"DEPRECIATIONS DES IMMOBILISATIONS"]
[290,"Dépréciations des immobilisations incorporelles"]
[2905,"Marques, procédés, droits et valeurs similaires"]
[2906,"Droit au bail"]
[2907,"Fonds commercial"]
[2908,"Autres immobilisations incorporelles"]
[291,"Dépréciations des immobilisations corporelles"]
[2911,"Terrains"]
[292,"Dépréciations des immobilisations mises en concession"]
[293,"Dépréciations des immobilisations en cours"]
[2931,"Immobilisations corporelles en cours"]
[2932,"Immobilisations incorporelles en cours"]
[296,"Provisions pour dépréciation des participations et créances rattachées à des participations"]
[2961,"Titres de participations"]
[2966,"Autres formes de participation"]
[2967,"Créances rattachées à des participations"]
[2968,"Créances rattachées à des sociétés en participation"]
[297,"Provisions pour dépréciation des autres immobilisations financières"]
[2971,"Titres immobilisés autres que les titres immobilisés de l'activité de portefeuille (droit de propriété)"]
[2972,"Titres immobilisés (droit de créance)"]
[2973,"Titres immobilisés de l'activité de portefeuille"]
[2974,"Prêts"]
[2975,"Dépôts et cautionnements versés"]
[2976,"Autres créances immobilisées"]
[3,"COMPTES DE STOCKS ET D'EN-COURS"]
[31,"MATIERES PREMIERES (ET FOURNITURES)"]
[311,"Matière (ou groupe) A"]
[312,"Matière (ou groupe) B"]
[317,"Fournitures A, B, C…"]
[32,"AUTRES APPROVISIONNEMENTS"]
[321,"Matières consommables"]
[3211,"Matière (ou groupe) C"]
[3212,"Matière (ou groupe) D"]
[322,"Fournitures consommables"]
[3221,"Combustibles"]
[3222,"Produits d'entretien"]
[3223,"Fournitures d'atelier et d'usine"]
[3224,"Fournitures de magasin"]
[3225,"Fournitures de bureau"]
[326,"Emballages"]
[3261,"Emballages perdus"]
[3265,"Emballages récupérables non identifiables"]
[3267,"Emballages à usage mixte"]
[33,"EN-COURS DE PRODUCTION DE BIENS"]
[331,"Produits en-cours"]
[3311,"Produits en-cours P 1"]
[3312,"Produits en-cours P 2"]
[335,"Travaux en-cours"]
[3351,"Travaux en-cours T 1"]
[3352,"Travaux en-cours T 2"]
[34,"EN-COURS DE PRODUCTION DE SERVICES"]
[341,"Etudes en-cours"]
[3411,"Etudes en-cours E 1"]
[3412,"Etudes en-cours E 2"]
[345,"Prestations de services en-cours"]
[3411,"Prestations de services en-cours S 1"]
[3412,"Prestations de services en-cours S 2"]
[35,"STOCKS DE PRODUITS"]
[351,"Produits intermédiaires"]
[3511,"Produits intermédiaires (ou groupe) A"]
[3512,"Produits intermédiaires (ou groupe) B"]
[355,"Produits finis"]
[3551,"Produits finis (ou groupe) A"]
[3552,"Produits finis (ou groupe) B"]
[358,"Produits résiduels (ou matières de récupération)"]
[3581,"Déchets"]
[3585,"Rebuts"]
[3586,"Matières de récupération"]
[36,"STOCKS PROVENANT D'IMMOBILISATIONS"]
[37,"STOCKS DE MARCHANDISES"]
[371,"Marchandises (ou groupe) A"]
[372,"Marchandises (ou groupe) B"]
[39,"PROVISIONS POUR DEPRECIATION DES STOCKS ET EN-COURS"]
[391,"Provision pour dépréciation des matières premières (et fournitures)"]
[3911,"Matière (ou groupe) A"]
[3912,"Matière (ou groupe) B"]
[3917,"Fournitures A, B, C…"]
[392,"Provision pour dépréciation des autres approvisionnements"]
[3921,"Matières consommables"]
[3922,"Fournitures consommables"]
[3926,"Emballages"]
[393,"Provision pour dépréciation des en-cours de production de biens"]
[3931,"Produits en-cours"]
[3935,"Travaux en-cours"]
[394,"Provision pour dépréciation des en-cours de production de services"]
[3941,"Etudes en-cours"]
[3945,"Prestations de services en-cours"]
[395,"Provision pour dépréciation des stocks de produits"]
[3951,"Produits intermédiaires"]
[3955,"Produits finis"]
[397,"Provision pour dépréciation des stocks de marchandises"]
[3971,"Marchandises (ou groupe) A"]
[3972,"Marchandises (ou groupe) B"]
[4,"COMPTES DE TIERS"]
[40,"FOURNISSEURS ET COMPTES RATTACHES"]
[400,"Fournisseurs et comptes rattachés"]
[401,"Fournisseurs"]
[4011,"Fournisseurs - Achats de biens et de services"]
[4017,"Fournisseurs - Retenues de garantie"]
[403,"Fournisseurs - Effets à payer"]
[404,"Fournisseurs d'immobilisations"]
[4041,"Fournisseurs - Achats d'immobilisations"]
[4047,"Fournisseurs d'immobilisations - Retenue de garantie"]
[405,"Fournisseurs d'immobilisations - Effets à payer"]
[408,"Fournisseurs - Factures non parvenues"]
[4081,"Fournisseurs"]
[4084,"Fournisseurs d'immobilisations"]
[4088,"Fournisseurs - Intérêts courus"]
[409,"Fournisseurs débiteurs"]
[4091,"Fournisseurs - Avances et acomptes versés sur commandes"]
[4096,"Fournisseurs - Créances pour emballages et matériel à rendre"]
[4097,"Fournisseurs - Autres avoirs"]
[40971,"Fournisseurs d'exploitation"]
[40974,"Fournisseurs d'immobilisations"]
[4098,"Rabais, remises, ristournes à obtenir et autres avoirs non encore reçus"]
[41,"CLIENTS ET COMPTES RATTACHES"]
[410,"Clients et comptes rattachés"]
[411,"Clients"]
[4111,"Clients - Ventes de biens ou de prestations de services"]
[4117,"Clients - Retenues de garantie"]
[413,"Clients - Effets à recevoir"]
[416,"Clients douteux ou litigieux"]
[418,"Clients - Produits non encore facturés"]
[4181,"Clients - Factures à établir"]
[4188,"Clients - Intérêts courus"]
[419,"Clients créditeurs"]
[4191,"Clients - Avances et acomptes reçus sur commandes"]
[4196,"Clients - Dettes pour emballages et matériels consignés"]
[4197,"Clients - Autres avoirs"]
[4198,"Rabais, remises, ristournes à accorder et autres avoirs à établir"]
[42,"PERSONNEL ET COMPTES RATTACHES"]
[421,"Personnel - Rémunérations dues"]
[422,"Comités d'entreprise, d'établissement…"]
[424,"Participation des salariés aux résultats"]
[4246,"Réserve spéciale"]
[4248,"Comptes courants"]
[425,"Personnel - Avances et acomptes"]
[426,"Personnel - Dépôts"]
[427,"Personnel - Oppositions"]
[428,"Personnel - Charges à payer et produits à recevoir"]
[4282,"Dettes provisionnées pour congés à payer"]
[4284,"Dettes provisionnées pour participation des salariés aux résultats"]
[4286,"Autres charges à payer"]
[4287,"Produits à recevoir"]
[43,"SECURITE SOCIALE ET AUTRES ORGANISMES SOCIAUX"]
[431,"Sécurité sociale"]
[437,"Autres organismes sociaux"]
[4371,"ASSEDIC"]
[4372,"Retraite complémentaire"]
[438,"Organismes sociaux - Charges à payer et produits à recevoir"]
[4382,"Charges sociales sur congés à payer"]
[4386,"Autres charges à payer"]
[4387,"Produits à recevoir"]
[44,"ETAT ET AUTRES COLLECTIVITES PUBLIQUES"]
[441,"Etat - Subventions à recevoir"]
[4411,"Subventions d'investissement"]
[4417,"Subventions d'exploitation"]
[4418,"Subventions d'équilibre"]
[4419,"Avances sur subventions"]
[442,"Etat - Impôts et taxes recouvrables sur des tiers"]
[4424,"Obligataires"]
[4425,"Associés"]
[443,"Opérations particulières avec l'Etat, les collectivités publiques, les organismes internationaux"]
[4431,"Créances sur l'Etat résultant de la suppression de la règle du décalage d'un mois en matière de TVA"]
[4438,"Intérêts courus sur créances figurant au compte 4431"]
[444,"Etat - Impôts sur les bénéfices"]
[445,"Etat - Taxes sur le chiffre d'affaires"]
[4452,"TVA due intracommunautaire"]
[4455,"Taxes sur le chiffre d'affaires à décaisser"]
[44551,"TVA à décaisser"]
[44558,"Taxes assimilées à la TVA"]
[4456,"Taxes sur le chiffre d'affaires déductibles"]
[44562,"TVA sur immobilisations"]
[44563,"TVA transférée par d'autres entreprises"]
[44566,"TVA sur autres biens et services"]
[44567,"Crédit de TVA à reporter"]
[44568,"Taxes assimilées à la TVA"]
[4457,"Taxes sur le chiffre d'affaires collectées par l'entreprise"]
[44571,"TVA collectée"]
[44578,"Taxes assimilées à la TVA"]
[4458,"Taxes sur le chiffre d'affaires à régulariser ou en attente"]
[44581,"Acomptes - Régime simplifié d'imposition"]
[44582,"Acomptes - Régime du forfait"]
[44583,"Remboursement de taxes sur le chiffre d'affaires demandé"]
[44584,"TVA récupérée d'avance"]
[44586,"Taxes sur le chiffre d'affaires sur factures non parvenues"]
[44587,"Taxes sur le chiffre d'affaires sur factures à établir"]
[446,"Obligations cautionnées"]
[447,"Autres impôts, taxes et versements assimilés"]
[448,"Etat - Charges à payer et produits à recevoir"]
[4482,"Charges fiscales sur congés à payer"]
[4486,"Charges à payer"]
[4487,"Produits à recevoir"]
[45,"GROUPES ET ASSOCIES"]
[451,"Groupes"]
[455,"Associés - Comptes courants"]
[4551,"Principal"]
[4558,"Intérêts courus"]
[456,"Associés - Opérations sur le capital"]
[4561,"Associés - Comptes d'apport en société"]
[45611,"Apports en nature"]
[45615,"Apports en numéraire"]
[4562,"Apporteurs - Capital appelé, non versé"]
[45621,"Actionnaires - capital souscrit et appelé, non versé"]
[45625,"Associés - capital appelé, non versé"]
[4563,"Associés - Versements reçus sur augmentations de capital"]
[4564,"Associés - Versements anticipés"]
[4566,"Actionnaires défaillants"]
[4567,"Associés - Capital à rembourser"]
[457,"Associés - Dividendes à payer"]
[458,"Associés - Opérations faites en commun et en GIE"]
[4581,"Opérations courantes"]
[4588,"Intérêts courus"]
[46,"DEBITEURS DIVERS ET CREDITEURS DIVERS"]
[462,"Créances sur cessions d'immobilisation"]
[464,"Dettes sur acquisitions de valeurs mobilières de placement"]
[465,"Créances sur cessions de valeurs mobilières de placement"]
[467,"Autres comptes débiteurs ou créditeurs"]
[468,"Divers - Charges à payer et produits à recevoir"]
[4686,"Charges à payer"]
[4687,"Produits à recevoir"]
[47,"COMPTES TRANSITOIRES OU D'ATTENTE"]
[471,"Compte d'attente"]
[472,"Compte d'attente"]
[473,"Compte d'attente"]
[474,"Compte d'attente"]
[475,"Compte d'attente"]
[476,"Différences de conversion - ACTIF"]
[4761,"Diminution des créances"]
[4762,"Augmentation des dettes"]
[4768,"Différences compensées par couverture de change"]
[477,"Différences de conversion - PASSIF"]
[4771,"Augmentation des créances"]
[4772,"Diminution des dettes"]
[4778,"Différences compensées par couverture de change"]
[478,"Autres comptes transitoires"]
[48,"COMPTES DE REGULARISATION"]
[481,"Charges à répartir sur plusieurs exercices"]
[4811,"Charges différées"]
[4812,"Frais d'acquisitions des immobilisations"]
[4816,"Frais d'émission des emprunts"]
[4818,"Charges à étaler"]
[486,"Charges constatées d'avance"]
[487,"Produits constatés d'avance"]
[488,"Comptes de répartition périodique des charges et des produits"]
[4886,"Charges"]
[4887,"Produits"]
[49,"PROVISIONS POUR DEPRECIATION DES COMPTES DE TIERS"]
[491,"Provisions pour dépréciation des comptes de clients"]
[495,"Provisions pour dépréciation des comptes du groupe et des associés"]
[4951,"Comptes du groupe"]
[4955,"Comptes courants des associés"]
[4958,"Opérations faites en commun et en GIE"]
[496,"Provisions pour dépréciation des comptes de débiteurs divers"]
[4962,"Créances sur cessions d'immobilisation"]
[4965,"Créances sur cessions de valeurs mobilières de placement"]
[4967,"Autres comptes débiteurs"]
[5,"COMPTES FINANCIERS"]
[50,"VALEURS MOBILIERES DE PLACEMENT"]
[501,"Parts dans les entreprises liées"]
[502,"Actions propres"]
[503,"Actions propres"]
[5031,"Titres cotés"]
[5035,"Titres non cotés"]
[504,"Autres titres conférant un droit de propriété"]
[505,"Obligations et bons émis par la société et rachetés par elle"]
[506,"Obligations et bons émis par la société et rachetés par elle"]
[5061,"Titres cotés"]
[5065,"Titres non cotés"]
[507,"Bons du Trésor et bons de caisse à court terme"]
[508,"Autres valeurs mobilières de placement et autres créances assimilées"]
[5081,"Autres valeurs mobilières"]
[5082,"Bons de souscription"]
[5088,"Intérêts courus sur obligations, bons et valeurs assimilées"]
[509,"Versements restant à effectuer sur valeurs mobilières de placement non libérées"]
[51,"BANQUES, ETABLISSEMENTS FINANCIERS ET ASSIMILES"]
[511,"Valeurs à l'encaissement"]
[5111,"Coupons échus à l'encaissement"]
[5112,"Chèques à encaisser"]
[5113,"Effets à l'encaissement"]
[5114,"Effets à l'escompte"]
[512,"Banques"]
[5111,"Comptes en monnaie nationale"]
[5114,"Comptes en devises"]
[514,"Chèques postaux"]
[515,"\"Caisses\" du Trésor et des établissements publics"]
[516,"Sociétés en bourse"]
[517,"Autres organismes financiers"]
[518,"Intérêts courus"]
[5181,"Intérêts courus à payer"]
[5188,"Intérêts courus à recevoir"]
[519,"Concours bancaires courants"]
[5191,"Crédit de mobilisation des créances commerciales (CMCC)"]
[5193,"Mobilisation de créances nées à l'étranger"]
[5198,"Intérêts courus sur soncours bancaires courants"]
[52,"INSTRUMENTS DE TRESORERIE"]
[53,"CAISSE"]
[530,"Caisse"]
[531,"Caisse siège social"]
[5311,"Caisse en monnaie nationale"]
[5314,"Caisse en devise"]
[532,"Caisse succursalle (ou usine) A"]
[533,"Caisse succursalle (ou usine) B"]
[54,"REGIES D'AVANCES ET ACCREDITIFS"]
[58,"VIREMENTS INTERNES"]
[59,"PROVISIONS POUR DEPRECIATION DES COMPTES FINANCIERS"]
[590,"Provision pour dépréciation des valeurs mobilières de placement"]
[5903,"Actions"]
[5904,"Autres titres conférant un droit de propriété"]
[5906,"Obligations"]
[5908,"Autres valeurs mobilières de placement et créances assimilées (provisions)"]
[6,"COMPTES DE CHARGES"]
[60,"ACHATS (SAUF 603)"]
[601,"Achats stockés - Matières premières"]
[6011,"Matières (ou groupe) A"]
[6012,"Matières (ou groupe) B"]
[6017,"Fournitures A, B, C…"]
[602,"Achats stockés - Autres approvisionnements"]
[6021,"Matières consommables"]
[60211,"Matières (ou groupe) C"]
[60212,"Matières (ou groupe) D"]
[6022,"Fournitures consommables"]
[60221,"Combustibles"]
[60222,"Produits d'entretien"]
[60223,"Fournitures d'atelier et d'usine"]
[60224,"Fournitures de magasin"]
[60225,"Fournitures de bureau"]
[6026,"Emballages"]
[60261,"Emballages perdus"]
[60265,"Emballages récupérables non identifiables"]
[60267,"Emballages à usage mixte"]
[603,"Variation des stocks (approvisionnements et marchandises)"]
[6031,"Variation des stocks de matières premières (et fournitures)"]
[6032,"Variation des stocks des autres approvisionnements"]
[6037,"Variation des stocks de marchandises"]
[604,"Achats d'études et prestations de services"]
[605,"Achats de matériel, équipements et travaux"]
[606,"Achats non stockés de matières et de fournitures"]
[6061,"Fournitures non stockables (eau, énergie…)"]
[6063,"Fournitures d'entretien et de petit équipement"]
[6064,"Fournitures administratives"]
[6068,"Autres matières et fournitures"]
[607,"Achats de marchandises"]
[6071,"Marchandises (ou groupe) A"]
[6072,"Marchandises (ou groupe) B"]
[608,"Compte de récapitulation des frais accessoires incorporés aux achats"]
[608116,"Achats de matières 1ères - Assurances"]
[608124,"Achats de matières 1ères - Transports"]
[609,"Rabais, remises et ristournes obtenus sur achats"]
[6091,"Rabais, remises et ristournes obtenus sur achats de matières premièrs (et fournitures)"]
[6092,"Rabais, remises et ristournes obtenus sur achats d'autres approvisionnements stockés"]
[6094,"Rabais, remises et ristournes obtenus sur achats d'études et prestations de services"]
[6095,"Rabais, remises et ristournes obtenus sur achats de matériel, équipements et travaux"]
[6096,"Rabais, remises et ristournes obtenus sur achats d'approvisionnements non stockés"]
[6097,"Rabais, remises et ristournes obtenus sur achats de marchandises"]
[6098,"Rabais, remises et ristournes non affectés"]
["61/62","AUTRES CHARGES EXTERNES"]
[61,"SERVICES EXTERIEURS"]
[611,"Sous-traitance générale"]
[612,"Redevance de crédit-bail"]
[6122,"Crédit-bail mobilier"]
[6125,"Crédit-bail immobilier"]
[613,"Locations"]
[6132,"Location immobilières"]
[6135,"Locations mobilières"]
[6136,"Malis sur emballages"]
[614,"Charges locatives et de copropriété"]
[615,"Entretien et réparations"]
[6152,"Entretien et réparations sur biens immobiliers"]
[6155,"Entretien et réparations sur biens mobiliers"]
[6156,"Maintenance"]
[616,"Primes d'assurance"]
[6161,"Multirisques"]
[6162,"Assurance obligatoire dommage-construction"]
[6163,"Assurance-transport "]
[61636,"Assurance-transport sur achats"]
[61637,"Assurance-transport sur ventes"]
[61638,"Assurance-transport sur autrs biens"]
[6164,"Risques d'exploitation"]
[6165,"Insolvabilité clients"]
[617,"Etudes et recherches"]
[618,"Divers"]
[6181,"Documentation générale"]
[6183,"Documentation technique"]
[6185,"Frais de colloques, séminaires, conférences"]
[619,"Rabais, remises et ristournes obtenus sur services extérieurs"]
[62,"AUTRES SERVICES EXTERIEURS"]
[621,"Personnel extérieur à l'entreprise"]
[6211,"Personnel intérimaire"]
[6214,"Personnel détaché ou prêté à l'entreprise"]
[622,"Rémunérations d'intermédiaires et honoraires"]
[6221,"Commissions et courtages sur achats"]
[6222,"Commissions et courtages sur ventes"]
[6224,"Rémunérations des transitaires"]
[6225,"Rémunérations d'affacturage"]
[6226,"Honoraires"]
[6227,"Frais d'actes et de contentieux"]
[6228,"Divers"]
[623,"Publicité, publications, relations publiques"]
[6231,"Annonces et insertions"]
[6232,"Echantillons"]
[6233,"Foires et expositions"]
[6234,"Cadeaux à la clientèle"]
[6235,"Primes"]
[6236,"Catalogues et imprimés"]
[6237,"Publications"]
[6238,"Divers (pourboires, dons courants…)"]
[624,"Transports de biens et transports collectifs du personnel"]
[6241,"Transports sur achats"]
[6242,"Transports sur ventes"]
[6243,"Transports entre établissements ou chantiers"]
[6244,"Transports administratifs"]
[6247,"Transports collectifs du personnel"]
[6248,"Divers"]
[625,"Déplacements, missions et réceptions"]
[6251,"Voyages et déplacements"]
[6255,"Frais de déménagement"]
[6256,"Missions"]
[6257,"Réceptions"]
[626,"Frais postaux et frais de télécommunication"]
[627,"Services bancaires et assimilés"]
[6271,"Frais sur titres (achat, vente, garde)"]
[6272,"Commissions et frais sur émissions d'emprunts"]
[6275,"Frais sur effets"]
[6276,"Location de coffres"]
[6278,"Autres frais et commissions sur prestations de service"]
[628,"Divers"]
[6281,"Concours divers (cotisations…)"]
[6284,"Frais de recrutement de personnel"]
[629,"Rabais, remises et ristournes obtenus sur autres services extérieurs"]
[63,"IMPÔTS, TAXES ET VERSEMENTS ASSIMILES"]
[631,"Impôts, taxes et versements assimilés sur rémunérations (administration des impôts)"]
[6311,"Taxe sur les salaires"]
[6312,"Taxe d'apprentissage"]
[6313,"Participation des employeurs à la formation professionnelle continue"]
[6314,"Cotisation pour défaut d'investissement obligatoire dans la construction"]
[6318,"Autres"]
[633,"Impôts, taxes et versements assimilés sur rémunérations (autres organismes)"]
[6331,"Versement de transport"]
[6332,"Allocation logement"]
[6333,"Participation des employeurs à la formation professionnelle continue"]
[6334,"Participation des employeurs à l'effort de construction"]
[6335,"Versements libératoires ouvrant droit à l'exonération de la taxe d'apprentissage"]
[6338,"Autres"]
[635,"Autres impôts, taxes et versements assimilés (administration des impôts)"]
[6351,"Impôts directs (sauf impôt sur les bénéfices)"]
[63511,"Taxe professionnelle"]
[63512,"Taxes foncières"]
[63513,"Autres impôts locaux"]
[63514,"Taxes sur les véhicules des sociétés"]
[6352,"Taxe sur le chiffre d'affaires non récupérables"]
[6353,"Impôts indirects"]
[6354,"Droits d'enregistrement et de timbre"]
[63541,"Droits de mutation"]
[6358,"Autres droits"]
[637,"Autres impôts, taxes et versements assimilés (autres organismes)"]
[6371,"Construction sociale de solidarité à la charge des sociétés"]
[6372,"Taxes perçues par les organismes publics internationaux"]
[6374,"Impôts et taxes exigibles à l'étranger"]
[6378,"Taxes diverses"]
[64,"CHARGES DE PERSONNEL"]
[641,"Rémunérations du personnel"]
[6411,"Salaires, appointements"]
[6412,"Congés payés"]
[6413,"Primes et gratifications"]
[6414,"Indemnités et avantages divers"]
[6415,"Supplément familial"]
[644,"Rémunérations du travail de l'exploitant"]
[645,"Charges de Sécurité sociale et de prévoyance"]
[6451,"Cotisations à l'URSSAF"]
[6452,"Cotisations aux mutuelles"]
[6453,"Cotisations aux caisses de retraites"]
[6454,"Cotisations aux ASSEDIC"]
[6458,"Cotisations aux autres organismes sociaux"]
[646,"Cotisations sociales personnelles de l'exploitation"]
[647,"Autres charges sociales"]
[6471,"Prestations directes"]
[6472,"Versements aux comités d'entreprise et d'établissement"]
[6473,"Versements aux comités d'hygiène et de sécurité"]
[6474,"Versements aux autres œuvres sociales"]
[6475,"Médecine du travail, pharmacie"]
[648,"Autres charges de personnel"]
[65,"AUTRES CHARGES DE GESTION COURANTE"]
[651,"Redevances pour concessions, brevets, licences, marques, procédés, logiciels, droits et valeurs similaires"]
[6511,"Redevances pour concessions, brevets, licences, marques, procédés, logiciels"]
[6516,"Droits d'auteur et de reproduction"]
[6518,"Autres droits et valeurs similaires"]
[653,"Jetons de présence"]
[654,"Pertes sur créances irrécouvrables"]
[6541,"Créances de l'exercice"]
[6544,"Créances des exercices extérieurs"]
[655,"Quotes-parts de résultat sur opérations faites en commun"]
[6551,"Quote-part de bénéfice transférée (comptabilité du gérant)"]
[6555,"Quote-part de perte supportée (comptabilité des associés non gérants)"]
[658,"Charges diverses de gestion courante"]
[66,"CHARGES FINANCIERES"]
[661,"Charges d'intérêts"]
[6611,"Intérêts des emprunts et dettes"]
[66116,"Intérêts des emprunts et dettes assimilées"]
[66117,"Intérêts des dettes rattachées à des participations"]
[6615,"Intérêts des comptes courants et des dépôts créditeurs"]
[6616,"Intérêts bancaires sur opérations de financement (escompte…)"]
[6617,"Intérêts des obligations cautionnées"]
[6618,"Intérêts des autres dettes"]
[66181,"Intérêts des dettes commerciales"]
[66188,"Intérêts des dettes diverses"]
[664,"Pertes sur créances liées à des participations"]
[665,"Escomptes accordés"]
[666,"Pertes de change"]
[667,"Charges nettes sur cessions de valeurs mobilières de placement"]
[668,"Autres charges financières"]
[67,"CHARGES EXCEPTIONNELLES"]
[671,"Charges exceptionnelles sur opérations de gestion"]
[6711,"Pénalités sur marchés (et dédits payés sur achats et ventes)"]
[6712,"Pénalités, amendes fiscales et pénales"]
[6713,"Dons, libéralités"]
[6714,"Créances devenues irrécouvrables dans l'exercice"]
[6715,"Subvention accordées"]
[6717,"Rappels d'impôts (autres qu'impôts sur les bénéfices)"]
[6718,"Autres charges exceptionnelles sur opération de gestion"]
[672,"Charges sur exercices antérieurs"]
[675,"Valeurs comptables des éléments d'actif cédés"]
[6751,"Immobilisations incorporelles"]
[6752,"Immobilisations corporelles"]
[6756,"Immobilisations financières"]
[6758,"Autres éléments d'actif"]
[678,"Autres charges exceptionnelles"]
[6781,"Malis provenant de clauses d'indexation"]
[6782,"Lots"]
[6783,"Malis provenant du rachat par l'entreprise d'actions et obligations émises par elle-même"]
[6788,"Charges exceptionnelles diverses"]
[68,"DOTATIONS AUX AMORTISSEMENTS ET AUX PROVISIONS"]
[681,"Dotations aux amortissements et aux provisions - Charges d'exploitation"]
[6811,"Dotations aux amortissements des immobilisations incorporelles et corporelles"]
[68111,"Immobilisations incorporelles"]
[68112,"Immobilisations corporelles"]
[6812,"Dotations aux amortissements des charges d'exploitation à répartir"]
[6815,"Dotations aux provisions pour risques et charges d'exploitation"]
[6816,"Dotations aux provisions pour dépréciation des immobilisations incorporelles et corporelles"]
[68161,"Immobilisations incorporelles"]
[68168,"Immobilisations corporelles"]
[6817,"Dotations aux provisions pour dépréciation des actifs circulants"]
[68173,"Stocks et en-cours"]
[68174,"Créances"]
[686,"Dotations aux amortissements et aux provisions - Charges financières"]
[6861,"Dotations aux amortissements des primes de remboursement des obligations"]
[6865,"Dotations aux provisions pour risques et charges financiers"]
[6866,"Dotations aux provisions pour dépréciation des éléments financiers"]
[68662,"Immobilisations financières"]
[68665,"Valeurs mobilières de placement"]
[6868,"Autres dotations"]
[69,"PARTICIPATION DES SALARIES - IMPÔTS SUR LES BENEFICES"]
[691,"Participation des salariés aux résultats"]
[695,"Impôts sur les bénéfices"]
[6951,"Impôts dus en France"]
[6952,"Contribution additionnelle à l'impôt sur les bénéfices"]
[6954,"Impôts dus à l'étranger"]
[696,"Supplément d'impôt sur les sociétés lié aux distributions"]
[697,"Imposition forfaitaire annuelle des sociétés"]
[698,"Intégration fiscale"]
[6981,"Intégration fiscale - Charges"]
[6989,"Intégration fiscale - Produits"]
[699,"Produits - Reports en arrière des déficits"]
[7,"COMPTES DE PRODUITS"]
[70,"VENTES DE PRODUITS FABRIQUES, PRESTATIONS DE SERVICES, MARCHANDISES"]
[701,"Ventes de produits finis"]
[7011,"Marchandises (ou groupe) A"]
[7012,"Marchandises (ou groupe) B"]
[702,"Ventes de produits intermédiaires"]
[703,"Ventes de produits résiduels"]
[704,"Travaux"]
[7041,"Travaux de catégorie (ou activité) A"]
[7042,"Travaux de catégorie (ou activité) B"]
[705,"Etudes"]
[706,"Prestations de services"]
[707,"Ventes de marchandises"]
[7071,"Marchandises (ou groupe) A"]
[7072,"Marchandises (ou groupe) B"]
[708,"Produits des activités annexes"]
[7081,"Produits des services exploités dans l'intérêt du personnel"]
[7082,"Commissions et courtages"]
[7083,"Locations diverses"]
[7084,"Mise à disposition de personnel facturée"]
[7085,"Ports et frais accessoires facturés"]
[7086,"Bonis sur reprises d'emballages consignés"]
[7087,"Bonifications obtenues des clients et primes sur ventes"]
[7088,"Autres produits d'activités annexes (cessions d'approvisionnements…)"]
[709,"Rabais, remises et ristournes accordés par l'entreprise"]
[7091,"Rabais, remises et ristournes accordés par l'entreprise sur ventes de produits finis"]
[7092,"Rabais, remises et ristournes accordés par l'entreprise sur ventes de produits intermédiaires"]
[7094,"Rabais, remises et ristournes accordés par l'entreprise sur travaux"]
[7095,"Rabais, remises et ristournes accordés par l'entreprise sur études"]
[7096,"Rabais, remises et ristournes accordés par l'entreprise sur prestations de services"]
[7097,"Rabais, remises et ristournes accordés par l'entreprise sur ventes de marchandises"]
[7098,"Rabais, remises et ristournes accordés par l'entreprise sur produits des activités annexes"]
[71,"PRODUCTION STOCKEE (ou déstockage)"]
[713,"Variation des stocks (en-cours de production, produits)"]
[7133,"Variation des en-cours de production de biens"]
[71331,"Produits en-cours"]
[71335,"Travaux en-cours"]
[7134,"Variation des en-cours de production de services"]
[71341,"Etudes en-cours"]
[71345,"Prestations de services en-cours"]
[7135,"Variation des stocks de produits"]
[71351,"Produits intermédiaires"]
[71355,"Produits finis"]
[71358,"Produits résiduels"]
[72,"PRODUCTION IMMOBILISEE"]
[721,"Immobilisations incorporelles"]
[722,"Immobilisations corporelles"]
[74,"SUBVENTIONS D'EXPLOITATION"]
[75,"AUTRES PRODUITS DE GESTION COURANTE"]
[751,"Redevances pour concessions, brevets, licences, marques, procédés, logiciels, droits et valeurs similaires"]
[7511,"Redevances pour concessions, brevets, licences, marques, procédés, logiciels"]
[7516,"Droits d'auteur et de reproduction"]
[7518,"Autres droits et valeurs similaires"]
[752,"Revenus des immeubles non affectés aux activités professionnelles"]
[753,"Jetons de présence et rémunérations d'administrateurs, gérants…"]
[754,"Ristournes perçues des coopératives (provenant des excédents)"]
[755,"Quotes-parts de résultat sur opérations faites en commun"]
[7551,"Quote-part de perte transférée (comptabilité du gérant)"]
[7555,"Quote-part de bénéfice attribuée (comptabilité des associés non-gérants)"]
[758,"Produits divers de gestion courante"]
[76,"PRODUITS FINANCIERS"]
[761,"Produits de participations"]
[7611,"Revenus des titres de participation"]
[7616,"Revenus des autres formes de participation"]
[7617,"Revenus des créances rattachées à des participations"]
[762,"Produits des autres immobilisations financières"]
[7621,"Revenus des titres immobilisés"]
[7626,"Revenus des prêts"]
[7627,"Revenus des créances immobilisées"]
[763,"Produits des autres créances"]
[7631,"Revenus des créances commerciales"]
[7638,"Revenus des créances diverses"]
[764,"Revenus des valeurs mobilières de placement"]
[765,"Escomptes obtenus"]
[766,"Gains de change"]
[767,"Produits nets sur cessions de valeurs mobilières de placement"]
[768,"Autres produits financiers"]
[77,"PRODUITS EXCEPTIONNELS"]
[771,"Produits exceptionnels sur opérations de gestion"]
[7711,"Dédits et pénalités perçus sur achats et sur ventes"]
[7713,"Libéralités reçues"]
[7714,"Rentrées sur créances amorties"]
[7715,"Subventions d'équilibre"]
[7717,"Dégrèvements d'impôts autres qu'impôts sur les bénéfices"]
[7718,"Autres produits exceptionnels sur opérations de gestion"]
[772,"Produits sur exercices antérieurs"]
[775,"Produits des cessions d'éléments d'actif"]
[7751,"Immobilisations incorporelles"]
[7752,"Immobilisations corporelles"]
[7756,"Immobilisations financières"]
[7758,"Autres éléments d'actif"]
[777,"Quote-part des subventions d'investissement virée au résultat de l'exercice"]
[778,"Autres produits exceptionnels"]
[7781,"Bonis provenant de clauses d'indexation"]
[7782,"Lots"]
[7783,"Bonis provenant du rachat par l'entreprise d'actions et d'obligations émises par elle-même"]
[7788,"Produits exceptionnels divers"]
[78,"REPRISES SUR AMORTISSEMENTS ET PROVISIONS"]
[781,"Reprises sur amortissements et provisions (à inscrire dans les produits d'exploitation)"]
[7811,"Reprises sur amortissements des immobilisations incorporelles et corporelles"]
[78111,"Immobilisations incorporelles"]
[78112,"Immobilisations corporelles"]
[7815,"Reprises sur provisions pour risques et charges d'exploitation"]
[7816,"Reprises sur dépréciation des immobilisations  incorporelles et corporelles"]
[78161,"Immobilisations incorporelles"]
[78162,"Immobilisations corporelles"]
[7817,"Reprises sur provisions pour dépréciation des actifs circulants"]
[78173,"Stocks et en-cours"]
[78174,"Créances"]
[786,"Reprises sur provisions pour risques (à inscrire dans les produits financiers)"]
[7865,"Reprises sur provisions pour risques et charges financiers"]
[7866,"Reprises sur provisions pour dépréciation des éléments financiers"]
[78662,"Immobilisations financières"]
[78665,"Valeurs mobilières de placement"]
[787,"Reprises sur provisions (à inscrire dans les produits exceptionnels)"]
[7872,"Reprises sur provisions réglementées (immobilisations)"]
[78725,"Amortissements dérogatoires"]
[78726,"Provision spéciale de réévaluation"]
[78727,"Plus-values réinvesties"]
[7873,"Reprises sur provisions réglementées (stocks)"]
[7874,"Reprises sur autres provisions réglementées"]
[7875,"Reprises sur provisions pour risques et charges exceptionnels"]
[7876,"Reprises pour dépréciations exceptionnelles"]
[79,"TRANSFERTS DE CHARGES"]
[791,"Transferts de charges d'exploitation"]
[796,"Transferts de charges financières"]
[797,"Transferts de charges exceptionnelles"]
[80,"ENGAGEMENTS DONNES PAR L'ENTITE"]
[801,"Engagements donnés par l'entité"]
[8011,"Avals, cautions,garanties"]
[8014,"Effets circulant sous l'endos de l'entité"]
[8016,"Redevances de crédit-bail restant à courir"]
[80161,"Crédit-bail mobilier"]
[80165,"Crédit-bail immobilier"]
[8018,"Autres engagements donnés"]
[802,"Engagements reçus par l'entité"]
[8021,"Avals, cautions,garanties"]
[8024,"Créances escomptées non échues"]
[8026,"Engagements reçus pour utilisation en crédit-bail"]
[80261,"Crédit-bail mobilier"]
[80265,"Crédit-bail immobilier"]
[8028,"Autres engagements reçus"]
[809,"Contrepartie des engagements"]
[8091,"Contrepartie 801"]
[8092,"Contrepartie 802"]
[88,"RESULTAT EN INSTANCE D'AFFECTATION"]
[89,"BILAN"]
[890,"Bilan d'ouverture"]
[891,"Bilan de clôture"]